Workbook

Sheet JEC FINAL 2016 RESULTS
O1: SKATERS ON THE PODIUM PER GROUPS AND NATIONS
B2: QUALIFIELD SKATERS PER NATIONS IN AGEGROUPS | O2: SENIOR | U2: JUN "A" | AA2: JUN "B" | AG2: JUN "C" | AM2: JUN "D" | AS2: RELAYS | AY2: ALL
D3: SENIORS | F3: JUNIOR A | H3: JUNIOR B | J3: JUNIOR C | L3: JUNIOR D | N3: TOTAL | O3: G | P3: S | Q3: B | R3: G | S3: S | T3: B | U3: G | V3: S | W3: B | X3: G | Y3: S | Z3: B | AA3: G | AB3: S | AC3: B | AD3: G | AE3: S | AF3: B | AG3: G | AH3: S | AI3: B | AJ3: G | AK3: S | AL3: B | AM3: G | AN3: S | AO3: B | AP3: G | AQ3: S | AR3: B | AS3: G | AT3: S | AU3: B | AV3: G | AW3: S | AX3: B | AY3: G | AZ3: S | BA3: B
D4: Ladies | E4: Men | F4: Ladies | G4: Men | H4: Girls | I4: Boys | J4: Girls | K4: Boys | L4: Girls | M4: Boys | O4: LADIES | R4: MEN | U4: LADIES | X4: MEN | AA4: GIRLS | AD4: BOYS | AG4: GIRLS | AJ4: BOYS | AM4: GIRLS | AP4: BOYS | AS4: LADIES | AV4: MEN
A5: 1 | B5: AUSTRIA | C5: AUT | F5: 1 | N5: =SUM(D5:M5) -> 1 | AY5: =SUM(O5,R5,U5,X5,AA5,AD5,AG5,AJ5,AM5,AP5,AS5,AV5) -> 0 | AZ5: =SUM(P5,S5,V5,Y5,AB5,AE5,AH5,AK5,AN5,AQ5,AT5,AW5) -> 0 | BA5: 0
A6: 2 | B6: BELARUS | C6: BLR | F6: 1 | H6: 1 | N6: =SUM(D6:M6) -> 2 | AY6: =SUM(O6,R6,U6,X6,AA6,AD6,AG6,AJ6,AM6,AP6,AS6,AV6) -> 0 | AZ6: 0 | BA6: 0
A7: 3 | B7: BELGIUM | C7: BEL | D7: 1 | G7: 3 | J7: 1 | M7: 1 | N7: 6 | X7: 1 | AG7: 1 | AY7: 2 | AZ7: 0 | BA7: 0
A8: 4 | B8: BULGARIA | C8: BUL | D8: 1 | F8: 1 | G8: 1 | M8: 1 | N8: 4 | AY8: 0 | AZ8: 0 | BA8: 0
A9: 5 | B9: CROATIA | C9: CRO | E9: 2 | F9: 1 | G9: 1 | H9: 1 | N9: 5 | AY9: 0 | AZ9: 0 | BA9: 0
A10: 6 | B10: CZECH REPUBLIC | C10: CZE | F10: 3 | H10: 2 | J10: 1 | K10: 1 | L10: 2 | N10: 9 | V10: 1 | AH10: 1 | AM10: 1 | AS10: 1 | AY10: 2 | AZ10: 2 | BA10: 0
A11: 7 | B11: FRANCE | C11: FRA | E11: 1 | G11: 1 | H11: 1 | I11: 2 | K11: 1 | L11: 1 | M11: 1 | N11: 8 | AJ11: 1 | AY11: 1 | AZ11: 0 | BA11: 0
A12: 8 | B12: GREAT BRITAIN | C12: GBR | D12: 2 | E12: 2 | F12: 1 | I12: 1 | K12: 1 | M12: 1 | N12: 8 | P12: 1 | AW12: 1 | AY12: 0 | AZ12: 2 | BA12: 0
A13: 9 | B13: GERMANY | C13: GER | F13: 2 | H13: 2 | J13: 1 | K13: 1 | L13: 1 | N13: 7 | AC13: 1 | AT13: 1 | AY13: 0 | AZ13: 1 | BA13: 1
A14: 10 | B14: HUNGRAY | C14: HUN | H14: 1 | I14: 1 | J14: 1 | K14: 1 | L14: 3 | M14: 3 | N14: 10 | AQ14: 1 | AY14: 0 | AZ14: 1 | BA14: 0
A15: 11 | B15: ITALY | C15: ITA | F15: 2 | G15: 1 | H15: 3 | I15: 2 | J15: 3 | K15: 1 | L15: 3 | M15: 3 | N15: 18 | U15: 1 | AB15: 1 | AI15: 1 | AN15: 1 | AR15: 1 | AX15: 1 | AY15: 1 | AZ15: 2 | BA15: 3
A16: 12 | B16: LATVIA | C16: LAT | G16: 2 | I16: 1 | K16: 2 | N16: 5 | Z16: 1 | AY16: 0 | AZ16: 0 | BA16: 1
A17: 13 | B17: LITHUANIA | C17: LTU | K17: 1 | N17: 1 | AY17: 0 | AZ17: 0 | BA17: 0
A18: 14 | B18: LUXEMBURG | C18: LUX | J18: 1 | K18: 1 | N18: 2 | AY18: 0 | AZ18: 0 | BA18: 0
A19: 15 | B19: NETHERLANDS | C19: NED | D19: 1 | E19: 3 | F19: 3 | G19: 1 | H19: 2 | I19: 3 | J19: 2 | K19: 3 | L19: 3 | M19: 1 | N19: 22 | O19: 1 | R19: 1 | S19: 1 | T19: 1 | AA19: 1 | AD19: 1 | AF19: 1 | AV19: 1 | AY19: 5 | AZ19: 1 | BA19: 2
A20: 16 | B20: POLAND | C20: POL | D20: 1 | G20: 1 | H20: 3 | I20: 3 | J20: 2 | K20: 1 | M20: 2 | N20: 13 | AE20: 1 | AP20: 1 | AU20: 1 | AY20: 1 | AZ20: 1 | BA20: 1
A21: 17 | B21: ROMANIA | C21: ROU | D21: 3 | E21: 1 | G21: 1 | K21: 1 | L21: 1 | N21: 7 | Q21: 1 | AK21: 1 | AY21: 0 | AZ21: =SUM(P21,S21,V21,Y21,AB21,AE21,AH21,AK21,AN21,AQ21,AT21,AW21) -> 1 | BA21: =SUM(Q21,T21,W21,Z21,AC21,AF21,AI21,AL21,AO21,AR21,AU21,AX21) -> 1
A22: 18 | B22: RUSSIA | C22: RUS | J22: 1 | L22: 1 | M22: 2 | N22: 4 | AY22: 0 | AZ22: 0 | BA22: 0
A23: 19 | B23: SLOVAKIA | C23: SVK | F23: 1 | J23: 3 | L23: 1 | N23: 5 | W23: 1 | AO23: 1 | AY23: 0 | AZ23: 0 | BA23: 2
A24: 20 | B24: SPAIN | C24: ESP | M24: 1 | N24: 1 | AY24: 0 | AZ24: 0 | BA24: 0
A25: 21 | B25: SWEDEN | C25: SWE | G25: 2 | N25: 2 | AY25: 0 | AZ25: 0 | BA25: 0
A26: 22 | B26: TURKEY | C26: TUR | G26: 1 | I26: 2 | K26: 1 | N26: 4 | Y26: 1 | AL26: 1 | AY26: 0 | AZ26: 1 | BA26: 1
A27: 23 | B27: UKRAINE | C27: UKR | G27: 1 | I27: 1 | N27: 2 | AY27: 0 | AZ27: 0 | BA27: 0
D28: =SUM(D5:D27) -> 9 | E28: =SUM(E5:E27) -> 9 | F28: 16 | G28: 16 | H28: 16 | I28: 16 | J28: 16 | K28: 16 | L28: 16 | M28: 16 | N28: =SUM(N5:N27) -> 146 | O28: =SUM(O5:O27) -> 1 | P28: =SUM(P7:P27) -> 1 | Q28: 1 | R28: 1 | S28: 1 | T28: 1 | U28: 1 | V28: 1 | W28: 1 | X28: 1 | Y28: 1 | Z28: 1 | AA28: 1 | AB28: 1 | AC28: 1 | AD28: 1 | AE28: 1 | AF28: 1 | AG28: 1 | AH28: 1 | AI28: 1 | AJ28: 1 | AK28: 1 | AL28: 1 | AM28: 1 | AN28: 1 | AO28: 1 | AP28: 1 | AQ28: 1 | AR28: 1 | AS28: 1 | AT28: 1 | AU28: 1 | AV28: 1 | AW28: 1 | AX28: 1 | AY28: =SUM(AY5:AY27) -> 12 | AZ28: =SUM(AZ5:AZ27) -> 12 | BA28: =SUM(BA5:BA27) -> 12
C29: NAT
B30: STARCLASS | C30: 9 | D30: =SUM(D7,D11,D12,D13,D15,D18,D19,D24,D25) -> 4 | E30: =SUM(E7,E11,E12,E13,E15,E18,E19,E24,E25) -> 6 | F30: =SUM(F7,F11,F12,F13,F15,F18,F19,F24,F25) -> 8 | G30: 8 | H30: 8 | I30: 8 | J30: 8 | K30: 8 | L30: 8 | M30: 8 | N30: =SUM(F30:M30) -> 64 | O30: =SUM(O7,O11,O12,O13,O15,O18,O19,O24,O25) -> 1 | P30: =SUM(P7,P11,P12,P13,P15,P18,P19,P24,P25) -> 1 | Q30: 0 | R30: 1 | S30: 1 | T30: 1 | U30: 1 | V30: 0 | W30: 0 | X30: 1 | Y30: 0 | Z30: 0 | AA30: 1 | AB30: 1 | AC30: 1 | AD30: 1 | AE30: 0 | AF30: 1 | AG30: 1 | AH30: 0 | AI30: 1 | AJ30: 1 | AK30: 0 | AL30: 0 | AM30: 0 | AN30: 1 | AO30: 0 | AP30: 0 | AQ30: 0 | AR30: 1 | AS30: 0 | AT30: 1 | AU30: 0 | AV30: 1 | AW30: 1 | AX30: 1 | AY30: =SUM(AY7,AY11,AY12,AY13,AY15,AY18,AY19,AY24,AY25) -> 9 | AZ30: =SUM(AZ7,AZ11,AZ12,AZ13,AZ15,AZ18,AZ19,AZ24,AZ25) -> 6 | BA30: =SUM(BA7,BA11,BA12,BA13,BA15,BA18,BA19,BA24,BA25) -> 6 | BB30: =SUM(O30:AX30) -> 21
B31: DANUBIA SERIES | C31: 14 | D31: =SUM(D5,D6,D8,D9,D10,D14,D16,D20,D21,D22,D23,D27) -> 5 | E31: =SUM(E5,E6,E8,E9,E10,E14,E16,E20,E21,E22,E23,E27) -> 3 | F31: 8 | G31: =SUM(G5,G6,G8,G9,G10,G14,G16,G17,G20,G21,G22,G23,G26,G27) -> 8 | H31: 8 | I31: 6 | J31: 8 | K31: =SUM(K5,K6,K8,K9,K10,K14,K16,K17,K20,K21,K22,K23,K26,K27) -> 8 | L31: 8 | M31: 8 | N31: =SUM(N5,N6,N8,N9,N10,N14,N16,N17,N20,N21,N22,N23,N26,N27) -> 72 | O31: =SUM(O5,O6,O8,O9,O10,O14,O16,O20,O21,O22,O23,O27) -> 0 | P31: 0 | Q31: 1 | R31: 0 | S31: 0 | T31: 0 | U31: 0 | V31: 1 | W31: 1 | X31: 0 | Y31: 0 | Z31: 1 | AA31: 0 | AB31: 0 | AC31: 0 | AD31: 0 | AE31: 1 | AF31: 0 | AG31: 0 | AH31: 1 | AI31: 0 | AJ31: 0 | AK31: 1 | AL31: 0 | AM31: 1 | AN31: 0 | AO31: 1 | AP31: 1 | AQ31: 1 | AR31: 0 | AS31: 1 | AT31: 0 | AU31: 1 | AV31: 0 | AW31: 0 | AX31: 0 | AY31: =SUM(AY5,AY6,AY8,AY9,AY10,AY14,AY16,AY20,AY21,AY22,AY23,AY27) -> 3 | AZ31: =SUM(AZ5,AZ6,AZ8,AZ9,AZ10,AZ14,AZ16,AZ20,AZ21,AZ22,AZ23,AZ27) -> 5 | BA31: =SUM(BA5,BA6,BA8,BA9,BA10,BA14,BA16,BA20,BA21,BA22,BA23,BA27) -> 5 | BB31: =SUM(O31:AX31) -> 13
C32: =SUM(C30:C31) -> 23 | D32: =SUM(D30:D31) -> 9 | E32: =SUM(E30:E31) -> 9 | F32: =SUM(F30:F31) -> 16 | G32: =SUM(G30:G31) -> 16 | H32: 16 | I32: 14 | J32: 16 | K32: 16 | L32: 16 | M32: 16 | N32: =SUM(N30:N31) -> 136

Sheet JECF 2016 RESULTS BY NATIONS
A1: JUNIOR EUROPA CUP FINAL - BUDAPEST, HUN, 18.03. - 20.03.2016
A2: JUNIORS
A3: Rank | B3: Skater | C3: Member | D3: Age-group
A4: 14 | B4: BRANTNER Melanie | C4: AUT | D4: JUN "A" LADIES
A6: 1 | B6: ALMEY Jens | C6: BEL | D6: JUN "A" MEN
A7: 1 | B7: VAN KERCKVOORDE Evelien | C7: BEL | D7: JUN "C" LADIES
A8: 4 | B8: PÉTRÉ Ward | C8: BEL | D8: JUN "A" MEN
A9: 5 | B9: DESMET Stijn | C9: BEL | D9: JUN "A" MEN
A10: 10 | B10: SCHEPERS Leander | C10: BEL | D10: JUN "D" MEN
A12: 13 | B12: IZAFATAVA Mariya | C12: BLR | D12: JUN "A" LADIES
A13: 15 | B13: IZAFATAVA Hanna | C13: BLR | D13: JUN "B" LADIES
A15: 5 | B15: KALCHEV Lubomir | C15: BUL | D15: JUN "D" MEN
A16: 8 | B16: GEORGIEV Dimitar | C16: BUL | D16: JUN "A" MEN
A17: 12 | B17: LUKANOVA Marina | C17: BUL | D17: JUN "A" LADIES
A19: 10 | B19: BURIĆ Katarina | C19: CRO | D19: JUN "A" LADIES
A20: 13 | B20: KOLENC Martin | C20: CRO | D20: JUN "A" MEN
A21: 14 | B21: AŠČIĆ Valentina | C21: CRO | D21: JUN "B" LADIES
A23: 1 | B23: SIMANDLOVÁ Dominika | C23: CZE | D23: JUN "D" LADIES
A24: 2 | B24: KUNCIROVÁ Michala | C24: CZE | D24: JUN "A" LADIES
A25: 2 | B25: PFEIFEROVA Tereza | C25: CZE | D25: JUN "C" LADIES
A26: 6 | B26: VANKOVA Petra | C26: CZE | D26: JUN "B" LADIES
A27: 8 | B27: SEJPALOVÁ Michaela | C27: CZE | D27: JUN "A" LADIES
A28: 8 | B28: DOSLÁ Milada | C28: CZE | D28: JUN "B" LADIES
A29: 10 | B29: FAJKUS Radek | C29: CZE | D29: JUN "C" MEN
A30: 13 | B30: FAJKUSOVÁ Markéta | C30: CZE | D30: JUN "D" LADIES
A31: 16 | B31: KOLESÁRIKOVÁ Tereza | C31: CZE | D31: JUN "A" LADIES
A33: 14 | B33: LLOP-IZQUIERDO Nil | C33: ESP | D33: JUN "D" MEN
A35: 1 | B35: SELLIER Diané | C35: FRA | D35: JUN "C" MEN
A36: 8 | B36: VACHERON Cyprien | C36: FRA | D36: JUN "B" MEN
A37: 10 | B37: DAUDET Gwendoline | C37: FRA | D37: JUN "B" LADIES
A38: 12 | B38: FLORAC Clément | C38: FRA | D38: JUN "A" MEN
A39: 12 | B39: HAUGUEL Léa | C39: FRA | D39: JUN "D" LADIES
A40: 12 | B40: VOLET Gabriel | C40: FRA | D40: JUN "D" MEN
A41: 16 | B41: KHELLAF Théo | C41: FRA | D41: JUN "B" MEN
A43: 6 | B43: PICKERING Jennifer | C43: GBR | D43: JUN "A" LADIES
A44: 7 | B44: MOODY Jonathan | C44: GBR | D44: JUN "B" MEN
A45: 12 | B45: PREMPEH Solomon | C45: GBR | D45: JUN "C" MEN
A46: 15 | B46: COLLINS Theo | C46: GBR | D46: JUN "D" MEN
A48: 3 | B48: GÄRTNER Anna Katharina | C48: GER | D48: JUN "B" LADIES
A49: 6 | B49: BEISER Anna | C49: GER | D49: JUN "C" LADIES
A50: 7 | B50: TENZER Robin | C50: GER | D50: JUN "C" MEN
A51: 8 | B51: BABER Anna | C51: GER | D51: JUN "D" LADIES
A52: 9 | B52: TAUBERT Lotte | C52: GER | D52: JUN "A" LADIES
A53: 12 | B53: JACOBS Gina | C53: GER | D53: JUN "B" LADIES
A54: 15 | B54: RIETZKE Tina | C54: GER | D54: JUN "A" LADIES
A56: 2 | B56: JÁSZAPÁTI Péter | C56: HUN | D56: JUN "D" MEN
A57: 4 | B57: NÓGRÁDI Bence | C57: HUN | D57: JUN "D" MEN
A58: 6 | B58: NEMES Krisztián | C58: HUN | D58: JUN "B" MEN
A59: 6 | B59: SOMOGYI Barbara | C59: HUN | D59: JUN "D" LADIES
A60: 9 | B60: ZSIGÓ Bence | C60: HUN | D60: JUN "D" MEN
A61: 10 | B61: NAGY Anna Kerubina | C61: HUN | D61: JUN "D" LADIES
A62: 11 | B62: SZILICEI NÉMET Rebeka | C62: HUN | D62: JUN "B" LADIES
A63: 11 | B63: SIRÁLY Farkas | C63: HUN | D63: JUN "C" MEN
A64: 11 | B64: DOBRÁN Fanni | C64: HUN | D64: JUN "D" LADIES
A65: 12 | B65: TÚRI Anna | C65: HUN | D65: JUN "C" LADIES
A67: 1 | B67: SIGHEL Arianna | C67: ITA | D67: JUN "A" LADIES
A68: 2 | B68: IORIATTI Gloria | C68: ITA | D68: JUN "B" LADIES
A69: 2 | B69: FILIPPI Katia | C69: ITA | D69: JUN "D" LADIES
A70: 3 | B70: CONFORTOLA Elisa | C70: ITA | D70: JUN "C" LADIES
A71: 3 | B71: ROMEO Giuseppe | C71: ITA | D71: JUN "D" MEN
A72: 4 | B72: BRESCIANI Giorgia | C72: ITA | D72: JUN "C" LADIES
A73: 5 | B73: CONFORTOLA Gloria | C73: ITA | D73: JUN "B" LADIES
A74: 5 | B74: CHONG Mark Lawrence | C74: ITA | D74: JUN "B" MEN
A75: 5 | B75: BRADANINI Ilenia | C75: ITA | D75: JUN "D" LADIES
A76: 7 | B76: BOTTER GOMEZ Nicole | C76: ITA | D76: JUN "A" LADIES
A77: 7 | B77: GIORDANO Marco | C77: ITA | D77: JUN "A" MEN
A78: 7 | B78: OSS CHEMPER Davide | C78: ITA | D78: JUN "D" MEN
A79: 9 | B79: SPECHENHAUSER Luca | C79: ITA | D79: JUN "C" MEN
A80: 9 | B80: SPECHENHAUSER Anna | C80: ITA | D80: JUN "D" LADIES
A81: 11 | B81: MAFFEI Federica | C81: ITA | D81: JUN "C" LADIES
A82: 13 | B82: TUNNO Melissa | C82: ITA | D82: JUN "B" LADIES
A83: 14 | B83: MARINELLI Pietro | C83: ITA | D83: JUN "B" MEN
A84: 16 | B84: TUNNO Maurizio | C84: ITA | D84: JUN "D" MEN
A86: 3 | B86: ZVEJNIEKS Roberts-Janis | C86: LAT | D86: JUN "A" MEN
A87: 4 | B87: BERZINS Reinis | C87: LAT | D87: JUN "C" MEN
A88: 6 | B88: KRŪZBERGS Roberts | C88: LAT | D88: JUN "C" MEN
A89: 10 | B89: BAKEVICS Tomass | C89: LAT | D89: JUN "A" MEN
A90: 13 | B90: KRŪZBERGS Karlis | C90: LAT | D90: JUN "B" MEN
A92: 13 | B92: RAMANAUSKAS Salvijus | C92: LTU | D92: JUN "C" MEN
A94: 5 | B94: GÉRÉ Augustin | C94: LUX | D94: JUN "C" MEN
A95: 16 | B95: MURPHY Caroline | C95: LUX | D95: JUN "C" LADIES
A97: 1 | B97: LANCEE Gioya | C97: NED | D97: JUN "B" LADIES
A98: 1 | B98: DE BOER Tjerk | C98: NED | D98: JUN "B" MEN
A99: 3 | B99: BRUNSMANN Jasper | C99: NED | D99: JUN "B" MEN
A100: 4 | B100: DEN DULK Tineke | C100: NED | D100: JUN "A" LADIES
A101: 5 | B101: AARDOOM Avalon | C101: NED | D101: JUN "A" LADIES
A102: 6 | B102: SLOOTWEG Koen | C102: NED | D102: JUN "A" MEN
A103: 7 | B103: WIERSMA Marijn | C103: NED | D103: JUN "C" LADIES
A104: 8 | B104: BOSMA Hugo | C104: NED | D104: JUN "C" MEN
A105: 11 | B105: VAN ZUIJLEN Emma | C105: NED | D105: JUN "A" LADIES
A106: 12 | B106: JANSEN Nathan | C106: NED | D106: JUN "B" MEN
A107: 13 | B107: DALRYMPLE Ted | C107: NED | D107: JUN "D" MEN
A108: 14 | B108: DALRYMPLE Georgie | C108: NED | D108: JUN "C" LADIES
A109: 14 | B109: KINGMA Niels | C109: NED | D109: JUN "C" MEN
A110: 14 | B110: VELZEBOER Michelle | C110: NED | D110: JUN "D" LADIES
A111: 15 | B111: VLOEMANS Kjeld | C111: NED | D111: JUN "C" MEN
A112: 15 | B112: ROES Esmee | C112: NED | D112: JUN "D" LADIES
A113: 16 | B113: JORRITSMA Rosalie | C113: NED | D113: JUN "B" LADIES
A114: 16 | B114: NOORDERGRAAF Nikki | C114: NED | D114: JUN "D" LADIES
A116: 1 | B116: KRZEMIŃSKI Mateusz | C116: POL | D116: JUN "D" MEN
A117: 2 | B117: ANIKIEJ Rafał | C117: POL | D117: JUN "B" MEN
A118: 4 | B118: STORMOWSKA Kamila | C118: POL | D118: JUN "B" LADIES
A119: 7 | B119: MARKIEWICZ Patrycja | C119: POL | D119: JUN "B" LADIES
A120: 9 | B120: SUROWIEC Weronika | C120: POL | D120: JUN "B" LADIES
A121: 9 | B121: MALISZEWSKI Jakub | C121: POL | D121: JUN "B" MEN
A122: 9 | B122: TKACZUK Wiktoria | C122: POL | D122: JUN "C" LADIES
A123: 10 | B123: KUCZYŃSKI Łukasz | C123: POL | D123: JUN "B" MEN
A124: 11 | B124: BOROWIECKI Jędrzej | C124: POL | D124: JUN "D" MEN
A125: 15 | B125: ŻAK Wiktoria | C125: POL | D125: JUN "C" LADIES
A126: 16 | B126: NIEŚCIER Karol | C126: POL | D126: JUN "A" MEN
A127: 16 | B127: GISZKA Krystian | C127: POL | D127: JUN "C" MEN
A129: 2 | B129: SZÁSZ Attila | C129: ROU | D129: JUN "C" MEN
A130: 7 | B130: ALBERT Katalin | C130: ROU | D130: JUN "D" LADIES
A131: 15 | B131: ANTAL Tamas | C131: ROU | D131: JUN "A" MEN
A133: 4 | B133: KURCHATOVA Daria | C133: RUS | D133: JUN "D" LADIES
A134: 6 | B134: BALBEKOV Vladimir | C134: RUS | D134: JUN "D" MEN
A135: 8 | B135: LUZHBINA Anna | C135: RUS | D135: JUN "C" LADIES
A136: 8 | B136: PETRUSHENKOV Egor | C136: RUS | D136: JUN "D" MEN
A138: 3 | B138: PORUBSKA Alica | C138: SVK | D138: JUN "A" LADIES
A139: 3 | B139: FILIPOVA Lucia | C139: SVK | D139: JUN "D" LADIES
A140: 5 | B140: RUSNAKOVA Petra | C140: SVK | D140: JUN "C" LADIES
A141: 10 | B141: ŽELINSKÁ Ema | C141: SVK | D141: JUN "C" LADIES
A142: 13 | B142: TRUSOVÁ Sandra | C142: SVK | D142: JUN "C" LADIES
A144: 9 | B144: SUH Fabrice | C144: SWE | D144: JUN "A" MEN
A145: 11 | B145: JANSSON Jacob | C145: SWE | D145: JUN "A" MEN
A147: 2 | B147: YARDIMCI Firat | C147: TUR | D147: JUN "A" MEN
A148: 3 | B148: KARAGÖL Hazar | C148: TUR | D148: JUN "C" MEN
A149: 4 | B149: TAHTACI Davut | C149: TUR | D149: JUN "B" MEN
A150: 11 | B150: SIMSEK Tunay | C150: TUR | D150: JUN "B" MEN
A152: 14 | B152: HANDEI Volodymyr | C152: UKR | D152: JUN "A" MEN
A153: 15 | B153: HANDEI Oleh | C153: UKR | D153: JUN "B" MEN
A155: SENIORS
A157: 4 | B157: DANNEEL Alexandra | C157: BEL | D157: LADIES
A159: 8 | B159: DZHUSTROVA Lilia | C159: BUL | D159: LADIES
A161: 8 | B161: MARTINIC Ivan | C161: CRO | D161: MEN
A162: 9 | B162: SMOGAR Darko | C162: CRO | D162: MEN
A164: 5 | B164: MELINE Thibaut | C164: FRA | D164: MEN
A166: 2 | B166: THOMSON Kathryn | C166: GBR | D166: LADIES
A167: 4 | B167: CHEETHAM Josh | C167: GBR | D167: MEN
A168: 6 | B168: COOPER Gemma | C168: GBR | D168: LADIES
A169: 6 | B169: SIMMS Billy | C169: GBR | D169: MEN
A171: 1 | B171: KOOYSTRA Roza | C171: NED | D171: LADIES
A172: 1 | B172: HOOGERWERF Dylan | C172: NED | D172: MEN
A173: 2 | B173: BLOEMHOF Leon | C173: NED | D173: MEN
A174: 3 | B174: ELZINK Mylan | C174: NED | D174: MEN
A176: 9 | B176: IWACH Katarzyna | C176: POL | D176: LADIES
A178: 3 | B178: SZÖCS Renáta | C178: ROU | D178: LADIES
A179: 5 | B179: SILLÓ Ottilia | C179: ROU | D179: LADIES
A180: 7 | B180: BALÁZS Tünde | C180: ROU | D180: LADIES
A181: 7 | B181: IMRE Emil | C181: ROU | D181: MEN

Sheet DANUBIA SERIES 2015-16
A1: QUAL FOR JUNIOR EUROPE CUP (3 BEST COMPETITIONS) | M1: QUAL FOR JUNIOR EUROPE CUP
M2: 18 - 20 MARCH 2016 IN BUDAPEST (HUNGARY)
A3: JUNIOR A LADIES | Y3: LADIES | Z3: =COUNTIF($W$5:$W$101,Y3) -> 4
A4: Rank | B4: Name | C4: Member | D4: AUT | E4: ROU | F4: BUL | G4: SVK | H4: POL | I4: LAT | J4: Total | M4: Rank | N4: Name | O4: Member | P4: AUT | Q4: ROU | R4: BUL | S4: SVK | T4: POL | U4: LAT | V4: Total | Y4: MEN | Z4: =COUNTIF($W$5:$W$101,Y4) -> 3
A5: 1. | B5: PORUBSKA Alica | C5: SVK | D5: 729 | E5: - | F5: - | G5: 1,000 | H5: - | I5: 1,000 | J5: 2,729 | K5: JUN "A" LADIES | M5: 7. | N5: BRANTNER Melanie | O5: AUT | P5: 387 | Q5: - | R5: - | S5: 387 | T5: - | U5: 656 | V5: 1,430 | W5: JUN "A" LADIES | X5: =97-COUNTBLANK(W5:W101) -> 71 | Y5: JUN "A" LADIES | Z5: =COUNTIF($W$5:$W$101,Y5) -> 8
A6: 2. | B6: IZAFATAVA Mariya | C6: BLR | D6: 656 | E6: - | F6: - | G6: 656 | H6: - | I6: 810 | J6: 2,122 | K6: JUN "A" LADIES | Y6: JUN "A" MEN | Z6: 8
A7: 3. | B7: BURIĆ Katarina | C7: CRO | D7: 590 | E7: - | F7: - | G7: 590 | H7: - | I7: 900 | J7: 2,080 | K7: JUN "A" LADIES | M7: Rank | N7: Name | O7: Member | P7: AUT | Q7: ROU | R7: BUL | S7: SVK | T7: POL | U7: LAT | V7: Total | Y7: JUN "B" LADIES | Z7: 8
A8: 4. | B8: SEJPALOVÁ Michaela | C8: CZE | D8: 1,000 | E8: - | F8: - | G8: 900 | H8: - | I8: - | J8: 1,900 | K8: JUN "A" LADIES | M8: 2. | N8: IZAFATAVA Mariya | O8: BLR | P8: 656 | Q8: - | R8: - | S8: 656 | T8: - | U8: 810 | V8: 2,122 | W8: JUN "A" LADIES | Y8: JUN "B" MEN | Z8: 8
A9: 5. | B9: KUNCIROVÁ Michala | C9: CZE | D9: 900 | E9: - | F9: - | G9: 810 | H9: - | I9: - | J9: 1,710 | K9: JUN "A" LADIES | M9: 8. | N9: IZAFATAVA Hanna | O9: BLR | P9: 349 | Q9: - | R9: - | S9: 590 | T9: - | U9: 729 | V9: 1,668 | W9: JUN "B" LADIES | Y9: JUN "C" LADIES | Z9: 8
A10: 6. | B10: KOLESÁRIKOVÁ Tereza | C10: CZE | D10: 531 | E10: - | F10: - | G10: 430 | H10: - | I10: 590 | J10: 1,551 | K10: JUN "A" LADIES | Y10: JUN "C" MEN | Z10: 8
A11: 7. | B11: BRANTNER Melanie | C11: AUT | D11: 387 | E11: - | F11: - | G11: 387 | H11: - | I11: 656 | J11: 1,430 | K11: JUN "A" LADIES | M11: Rank | N11: Name | O11: Member | P11: AUT | Q11: ROU | R11: BUL | S11: SVK | T11: POL | U11: LAT | V11: Total | Y11: JUN "D" LADIES | Z11: 8
A12: 8. | B12: LUKANOVA Marina | C12: BUL | D12: 478 | E12: - | F12: - | G12: 206 | H12: - | I12: 729 | J12: 1,413 | K12: JUN "A" LADIES | M12: 8. | N12: LUKANOVA Marina | O12: BUL | P12: 478 | Q12: - | R12: - | S12: 206 | T12: - | U12: 729 | V12: 1,413 | W12: JUN "A" LADIES | Y12: JUN "D" MEN | Z12: 8
A13: 9. | B13: HAINO Marta | C13: LAT | D13: 254 | E13: - | F13: - | G13: 282 | H13: - | I13: 531 | J13: 1,067 | K13: JUN "A" LADIES | M13: 2. | N13: GEORGIEV Dimitar | O13: BUL | P13: 656 | Q13: - | R13: - | S13: 1,000 | T13: - | U13: 656 | V13: 2,312 | W13: JUN "A" MEN
A14: 10. | B14: IVANDIĆ Danijela | C14: CRO | D14: 314 | E14: - | F14: - | G14: 229 | H14: - | I14: 430 | J14: 973 | K14: JUN "A" LADIES | M14: 5. | N14: NASRI Klaudio | O14: BUL | P14: 135 | Q14: - | R14: - | S14: 729 | T14: - | U14: 810 | V14: 1,674 | W14: JUN "A" MEN
A15: 11. | B15: NAGAY Anita | C15: KAZ | D15: 810 | E15: - | F15: - | G15: - | H15: - | I15: - | J15: 810 | K15: JUN "A" LADIES | M15: 4. | N15: KALCHEV Lubomir | O15: BUL | P15: - | Q15: 590 | R15: 810 | S15: - | T15: 729 | U15: - | V15: 2,129 | W15: JUN "D" MEN
A16: 12. | B16: GAWLICA Oliwia | C16: POL | D16: - | E16: - | F16: - | G16: 729 | H16: - | I16: - | J16: 729 | K16: JUN "A" LADIES
A17: 13. | B17: KISIELEWSKA Dorota | C17: POL | D17: 349 | E17: - | F17: - | G17: 314 | H17: - | I17: - | J17: 663 | K17: JUN "A" LADIES | M17: Rank | N17: Name | O17: Member | P17: AUT | Q17: ROU | R17: BUL | S17: SVK | T17: POL | U17: LAT | V17: Total
A18: 14. | B18: SUROWIEC Marika | C18: POL | D18: 282 | E18: - | F18: - | G18: 254 | H18: - | I18: - | J18: 536 | K18: JUN "A" LADIES | M18: 3. | N18: BURIĆ Katarina | O18: CRO | P18: 590 | Q18: - | R18: - | S18: 590 | T18: - | U18: 900 | V18: 2,080 | W18: JUN "A" LADIES
A19: 15. | B19: KROMIDO Yuliya | C19: UKR | D19: - | E19: - | F19: - | G19: 531 | H19: - | I19: - | J19: 531 | K19: JUN "A" LADIES | M19: 6. | N19: AŠČIĆ Valentina | O19: CRO | P19: 387 | Q19: - | R19: - | S19: 478 | T19: - | U19: 900 | V19: 1,765 | W19: JUN "B" LADIES
A20: 16. | B20: ALIMBEKOVA Diana | C20: RUS | D20: - | E20: - | F20: - | G20: 478 | H20: - | I20: - | J20: 478 | K20: JUN "A" LADIES | M20: 2. | N20: MARTINIC Ivan | O20: CRO | R20: 810 | T20: 900 | V20: =SUM(Q20,R20,T20) -> 1,710 | W20: MEN
A21: 16. | B21: PASKEVICA Marta | C21: LAT | D21: - | E21: - | F21: - | G21: - | H21: - | I21: 478 | J21: 478 | K21: JUN "A" LADIES | M21: 3. | N21: SMOGAR Darko | O21: CRO | R21: 900 | T21: 810 | V21: =SUM(Q21,R21,T21) -> 1,710 | W21: MEN
A22: 18. | B22: BORNEMISSZA Zsuzsanna | C22: HUN | D22: 430 | E22: - | F22: - | G22: - | H22: - | I22: - | J22: 430 | K22: JUN "A" LADIES
A23: 19. | B23: ZELENKEVICA Anna | C23: LAT | D23: - | E23: - | F23: - | G23: - | H23: - | I23: 387 | J23: 387 | K23: JUN "A" LADIES | M23: Rank | N23: Name | O23: Member | P23: AUT | Q23: ROU | R23: BUL | S23: SVK | T23: POL | U23: LAT | V23: Total
A24: 20. | B24: SAZONOVA Anastasiia | C24: RUS | D24: - | E24: - | F24: - | G24: 349 | H24: - | I24: - | J24: 349 | K24: JUN "A" LADIES | M24: 4. | N24: SEJPALOVÁ Michaela | O24: CZE | P24: 1,000 | Q24: - | R24: - | S24: 900 | T24: - | U24: - | V24: 1,900 | W24: JUN "A" LADIES
A25: 21. | B25: YERDELEN Betül | C25: TUR | D25: 229 | E25: - | F25: - | G25: - | H25: - | I25: - | J25: 229 | K25: JUN "A" LADIES | M25: 5. | N25: KUNCIROVÁ Michala | O25: CZE | P25: 900 | Q25: - | R25: - | S25: 810 | T25: - | U25: - | V25: 1,710 | W25: JUN "A" LADIES
A26: 22. | B26: MILKOVA Jana | C26: BUL | D26: 206 | E26: - | F26: - | G26: - | H26: - | I26: - | J26: 206 | K26: JUN "A" LADIES | M26: 6. | N26: KOLESÁRIKOVÁ Tereza | O26: CZE | P26: 531 | Q26: - | R26: - | S26: 430 | T26: - | U26: 590 | V26: 1,551 | W26: JUN "A" LADIES
A27: 23. | B27: JANKOVIC Katarina | C27: SRB | D27: 185 | E27: - | F27: - | G27: - | H27: - | I27: - | J27: 185 | K27: JUN "A" LADIES | M27: 2. | N27: VANKOVA Petra | O27: CZE | P27: 656 | Q27: - | R27: - | S27: 1,000 | T27: - | U27: 656 | V27: 2,312 | W27: JUN "B" LADIES
A28: 24. | B28: STOIMENOVA Albena | C28: BUL | D28: 167 | E28: - | F28: - | G28: - | H28: - | I28: - | J28: 167 | K28: JUN "A" LADIES | M28: 7. | N28: DOSLÁ Milada | O28: CZE | P28: 810 | Q28: - | R28: - | S28: 900 | T28: - | U28: - | V28: 1,710 | W28: JUN "B" LADIES
A29: 25. | B29: BOROWIECKA Karolina | C29: POL | D29: 150 | E29: - | F29: - | G29: - | H29: - | I29: - | J29: 150 | K29: JUN "A" LADIES | M29: 1. | N29: PFEIFEROVA Tereza | O29: CZE | P29: - | Q29: 1,000 | R29: 1,000 | S29: - | T29: 1,000 | U29: - | V29: 3,000 | W29: JUN "C" LADIES
B30: SKATERS IN 2015/2016 | C30: =COUNTIF(J4:J29,">0") -> 25 | D30: =COUNTIF(D4:D29,"x") -> 0 | G30: =COUNTIF(G4:G29,"x") -> 0 | I30: =COUNTIF(I4:I29,"x") -> 0 | K30: JUN "A" LADIES | M30: 5. | N30: FAJKUS Radek | O30: CZE | P30: - | Q30: 656 | R30: 810 | S30: - | T30: 349 | U30: - | V30: 1,815 | W30: JUN "C" MEN
B31: ENTRIES IN 2015/2016 | C31: =SUM(D31,G31,I31) -> 45 | D31: =COUNTIF(D4:D29,">1") -> 19 | G31: =COUNTIF(G4:G29,">1") -> 16 | I31: =COUNTIF(I4:I29,">1") -> 10 | K31: JUN "A" LADIES | M31: 2. | N31: SIMANDLOVÁ Dominika | O31: CZE | P31: - | Q31: 729 | R31: 729 | S31: - | T31: 900 | U31: - | V31: 2,358 | W31: JUN "D" LADIES
M32: 6. | N32: FAJKUSOVÁ Markéta | O32: CZE | P32: - | Q32: 430 | R32: 656 | S32: - | T32: 590 | U32: - | V32: 1,676 | W32: JUN "D" LADIES
A33: JUNIOR B LADIES
A34: Rank | B34: Name | C34: Member | D34: AUT | E34: ROU | F34: BUL | G34: SVK | H34: POL | I34: LAT | J34: Total | M34: Rank | N34: Name | O34: Member | P34: AUT | Q34: ROU | R34: BUL | S34: SVK | T34: POL | U34: LAT | V34: Total
A35: 1. | B35: STORMOWSKA Kamila | C35: POL | D35: 1,000 | E35: - | F35: - | G35: 810 | H35: - | I35: 531 | J35: 2,341 | K35: JUN "B" LADIES | M35: 4. | N35: SZILICEI NÉMET Rebeka | O35: HUN | P35: 900 | Q35: - | R35: - | S35: 656 | T35: - | U35: 590 | V35: 2,146 | W35: JUN "B" LADIES
A36: 2. | B36: VANKOVA Petra | C36: CZE | D36: 656 | E36: - | F36: - | G36: 1,000 | H36: - | I36: 656 | J36: 2,312 | K36: JUN "B" LADIES | M36: 8. | N36: NEMES Krisztián | O36: HUN | P36: 28 | Q36: - | R36: - | S36: 656 | T36: - | U36: 729 | V36: 1,413 | W36: JUN "B" MEN
A37: 3. | B37: MARKIEWICZ Patrycja | C37: POL | D37: 531 | E37: - | F37: - | G37: 729 | H37: - | I37: 1,000 | J37: 2,260 | K37: JUN "B" LADIES | M37: 3. | N37: TÚRI Anna | O37: HUN | P37: - | Q37: 729 | R37: 810 | S37: - | T37: 656 | U37: - | V37: 2,195 | W37: JUN "C" LADIES
A38: 4. | B38: SZILICEI NÉMET Rebeka | C38: HUN | D38: 900 | E38: - | F38: - | G38: 656 | H38: - | I38: 590 | J38: 2,146 | K38: JUN "B" LADIES | M38: 8. | N38: SIRÁLY Farkas | O38: HUN | P38: - | Q38: 590 | R38: 531 | S38: - | T38: 387 | U38: - | V38: 1,508 | W38: JUN "C" MEN
A39: 5. | B39: SUROWIEC Weronika | C39: POL | D39: 729 | E39: - | F39: - | G39: 430 | H39: - | I39: 810 | J39: 1,969 | K39: JUN "B" LADIES | M39: 3. | N39: SOMOGYI Barbara | O39: HUN | P39: - | Q39: 656 | R39: 810 | S39: - | T39: 810 | U39: - | V39: 2,276 | W39: JUN "D" LADIES
A40: 6. | B40: AŠČIĆ Valentina | C40: CRO | D40: 387 | E40: - | F40: - | G40: 478 | H40: - | I40: 900 | J40: 1,765 | K40: JUN "B" LADIES | M40: 4. | N40: DOBRÁN Fanni | O40: HUN | P40: - | Q40: 900 | R40: 478 | S40: - | T40: 729 | U40: - | V40: 2,107 | W40: JUN "D" LADIES
A41: 7. | B41: DOSLÁ Milada | C41: CZE | D41: 810 | E41: - | F41: - | G41: 900 | H41: - | I41: - | J41: 1,710 | K41: JUN "B" LADIES | M41: 7. | N41: NAGY Anna Kerubina | O41: HUN | P41: - | Q41: 590 | R41: 531 | S41: - | T41: 430 | U41: - | V41: 1,551 | W41: JUN "D" LADIES
A42: 8. | B42: IZAFATAVA Hanna | C42: BLR | D42: 349 | E42: - | F42: - | G42: 590 | H42: - | I42: 729 | J42: 1,668 | K42: JUN "B" LADIES | M42: 3. | N42: JÁSZAPÁTI Péter | O42: HUN | P42: - | Q42: 900 | R42: 729 | S42: - | T42: 810 | U42: - | V42: 2,439 | W42: JUN "D" MEN
A43: 9. | B43: MATYÓK Adrienn | C43: HUN | D43: 590 | E43: - | F43: - | G43: 314 | H43: - | I43: 430 | J43: 1,334 | K43: JUN "B" LADIES | M43: 6. | N43: NÓGRÁDI Bence | O43: HUN | P43: - | Q43: 729 | R43: 531 | S43: - | T43: 656 | U43: - | V43: 1,916 | W43: JUN "D" MEN
A44: 10. | B44: UZAKOVA Mariya | C44: UKR | D44: 430 | E44: - | F44: - | G44: 349 | H44: - | I44: 478 | J44: 1,257 | K44: JUN "B" LADIES | M44: 9. | N44: ZSIGÓ Bence | O44: HUN | P44: - | Q44: 387 | R44: 430 | S44: - | T44: 387 | U44: - | V44: 1,204 | W44: JUN "D" MEN
A45: 11. | B45: ŠULCOVÁ Kristýna | C45: CZE | D45: 478 | E45: - | F45: - | G45: 135 | H45: - | I45: 387 | J45: 1,000 | K45: JUN "B" LADIES
A46: 12. | B46: BICANOVÁ Adéla | C46: CZE | D46: 314 | E46: - | F46: - | G46: 387 | H46: - | I46: 229 | J46: 930 | K46: JUN "B" LADIES | M46: Rank | N46: Name | O46: Member | P46: AUT | Q46: ROU | R46: BUL | S46: SVK | T46: POL | U46: LAT | V46: Total
A47: 13. | B47: FIALOVÁ Magdalena | C47: CZE | D47: 254 | E47: - | F47: - | G47: 531 | H47: - | I47: - | J47: 785 | K47: JUN "B" LADIES | M47: 4. | N47: ZVEJNIEKS Roberts-Janis | O47: LAT | P47: 1,000 | Q47: - | R47: - | S47: - | T47: - | U47: 1,000 | V47: 2,000 | W47: JUN "A" MEN
A48: 14. | B48: MIŁKOWSKA Karolina | C48: POL | D48: 167 | E48: - | F48: - | G48: 282 | H48: - | I48: 314 | J48: 763 | K48: JUN "B" LADIES | M48: 6. | N48: BAKEVICS Tomass | O48: LAT | P48: 810 | Q48: - | R48: - | S48: 430 | T48: - | U48: 430 | V48: 1,670 | W48: JUN "A" MEN
A49: 15. | B49: WILGA Magdalena | C49: POL | D49: 135 | E49: - | F49: - | G49: 150 | H49: - | I49: 349 | J49: 634 | K49: JUN "B" LADIES | M49: 2. | N49: KRŪZBERGS Karlis | O49: LAT | P49: 656 | Q49: - | R49: - | S49: 478 | T49: - | U49: 900 | V49: 2,034 | W49: JUN "B" MEN
A50: 16. | B50: WITULSKA Magdalena | C50: POL | D50: - | E50: - | F50: - | G50: 206 | H50: - | I50: 254 | J50: 460 | K50: JUN "B" LADIES | M50: 3. | N50: BERZINS Reinis | O50: LAT | P50: - | Q50: 531 | R50: 590 | S50: - | T50: 1,000 | U50: - | V50: 2,121 | W50: JUN "C" MEN
A51: 17. | B51: ALBERT Júlia | C51: ROU | D51: 185 | E51: - | F51: - | G51: 254 | H51: - | I51: - | J51: 439 | K51: JUN "B" LADIES | M51: 7. | N51: KRŪZBERGS Roberts | O51: LAT | P51: - | Q51: 1,000 | R51: - | S51: - | T51: 531 | U51: - | V51: 1,531 | W51: JUN "C" MEN
A52: 18. | B52: ROGACEWICZ Julia | C52: POL | D52: - | E52: - | F52: - | G52: 122 | H52: - | I52: 282 | J52: 404 | K52: JUN "B" LADIES
A53: 19. | B53: VÁGVÖLGYI Mercédesz | C53: HUN | D53: 150 | E53: - | F53: - | G53: 229 | H53: - | I53: - | J53: 379 | K53: JUN "B" LADIES | M53: Rank | N53: Name | O53: Member | P53: AUT | Q53: ROU | R53: BUL | S53: SVK | T53: POL | U53: LAT | V53: Total
A54: 20. | B54: DAVYDENKO Anna | C54: UKR | D54: 206 | E54: - | F54: - | G54: 89 | H54: - | I54: - | J54: 295 | K54: JUN "B" LADIES | M54: 2. | N54: RAMANAUSKAS Salvijus | O54: LTU | P54: - | Q54: 900 | R54: 656 | S54: - | T54: 656 | U54: - | V54: 2,212 | W54: JUN "C" MEN
A55: 21. | B55: JASIK Anna | C55: POL | D55: 282 | E55: - | F55: - | G55: - | H55: - | I55: - | J55: 282 | K55: JUN "B" LADIES
A56: 22. | B56: STANKIEWICZ Kamila | C56: POL | D56: 122 | E56: - | F56: - | G56: 109 | H56: - | I56: - | J56: 231 | K56: JUN "B" LADIES | M56: Rank | N56: Name | O56: Member | P56: AUT | Q56: ROU | R56: BUL | S56: SVK | T56: POL | U56: LAT | V56: Total
A57: 23. | B57: ÖZDEN Elif | C57: TUR | D57: 229 | E57: - | F57: - | G57: - | H57: - | I57: - | J57: 229 | K57: JUN "B" LADIES | M57: 7. | N57: NIEŚCIER Karol | O57: POL | P57: 590 | Q57: - | R57: - | S57: 478 | T57: - | U57: 314 | V57: 1,382 | W57: JUN "A" MEN
A58: 24. | B58: BABAICEVA Ksenija | C58: LAT | D58: 109 | E58: - | F58: - | G58: 98 | H58: - | I58: - | J58: 207 | K58: JUN "B" LADIES | M58: 1. | N58: STORMOWSKA Kamila | O58: POL | P58: 1,000 | Q58: - | R58: - | S58: 810 | T58: - | U58: 531 | V58: 2,341 | W58: JUN "B" LADIES
A59: 25. | B59: SOLDATOVA Marina | C59: RUS | D59: - | E59: - | F59: - | G59: 185 | H59: - | I59: - | J59: 185 | K59: JUN "B" LADIES | M59: 3. | N59: MARKIEWICZ Patrycja | O59: POL | P59: 531 | Q59: - | R59: - | S59: 729 | T59: - | U59: 1,000 | V59: 2,260 | W59: JUN "B" LADIES
A60: 26. | B60: BOROWSKA Patrycja | C60: POL | D60: - | E60: - | F60: - | G60: 167 | H60: - | I60: - | J60: 167 | K60: JUN "B" LADIES | M60: 5. | N60: SUROWIEC Weronika | O60: POL | P60: 729 | Q60: - | R60: - | S60: 430 | T60: - | U60: 810 | V60: 1,969 | W60: JUN "B" LADIES
A61: 27. | B61: BILONOZHENKO Daryna | C61: UKR | D61: 89 | E61: - | F61: - | G61: 72 | H61: - | I61: - | J61: 161 | K61: JUN "B" LADIES | M61: 1. | N61: KUCZYŃSKI Łukasz | O61: POL | P61: 729 | Q61: - | R61: - | S61: 900 | T61: - | U61: 810 | V61: 2,439 | W61: JUN "B" MEN
A62: 28. | B62: OBRADOVIC Anja | C62: SRB | D62: 98 | E62: - | F62: - | G62: - | H62: - | I62: - | J62: 98 | K62: JUN "B" LADIES | M62: 3. | N62: ANIKIEJ Rafał | O62: POL | P62: 1,000 | Q62: - | R62: - | S62: 1,000 | T62: - | U62: - | V62: 2,000 | W62: JUN "B" MEN
A63: 29. | B63: STABRYŁA Beata | C63: POL | D63: - | E63: - | F63: - | G63: 80 | H63: - | I63: - | J63: 80 | K63: JUN "B" LADIES | M63: 5. | N63: MALISZEWSKI Jakub | O63: POL | P63: 430 | Q63: - | R63: - | S63: 531 | T63: - | U63: 590 | V63: 1,551 | W63: JUN "B" MEN
A64: 29. | B64: SLUGA Klarisa | C64: SLO | D64: 80 | E64: - | F64: - | G64: - | H64: - | I64: - | J64: 80 | K64: JUN "B" LADIES | M64: 2. | N64: TKACZUK Wiktoria | O64: POL | P64: - | Q64: 810 | R64: 656 | S64: - | T64: 900 | U64: - | V64: 2,366 | W64: JUN "C" LADIES
A65: 31. | B65: KRASNOVA Ekaterina | C65: BLR | D65: 72 | E65: - | F65: - | G65: - | H65: - | I65: - | J65: 72 | K65: JUN "B" LADIES | M65: 4. | N65: ŻAK Wiktoria | O65: POL | P65: - | Q65: 656 | R65: 590 | S65: - | T65: 729 | U65: - | V65: 1,975 | W65: JUN "C" LADIES
A66: 32. | B66: BODÓ Emoke | C66: ROU | D66: 65 | E66: - | F66: - | G66: - | H66: - | I66: - | J66: 65 | K66: JUN "B" LADIES | M66: 4. | N66: GISZKA Krystian | O66: POL | P66: - | Q66: 810 | R66: 478 | S66: - | T66: 590 | U66: - | V66: 1,878 | W66: JUN "C" MEN
B67: SKATERS IN 2015/2016 | C67: =COUNTIF(J35:J66,">0") -> 32 | D67: =COUNTIF(D41:D66,"x") -> 0 | G67: =COUNTIF(G41:G66,"x") -> 0 | I67: =COUNTIF(I41:I66,"x") -> 0 | K67: JUN "B" LADIES | M67: 1. | N67: KRZEMIŃSKI Mateusz | O67: POL | P67: - | Q67: 1,000 | R67: 1,000 | S67: - | T67: 1,000 | U67: - | V67: 3,000 | W67: JUN "D" MEN
B68: ENTRIES IN 2015/2016 | C68: =SUM(D68,G68,I68) -> 50 | D68: =COUNTIF(D41:D66,">1") -> 21 | G68: =COUNTIF(G41:G66,">1") -> 20 | I68: =COUNTIF(I41:I66,">1") -> 9 | K68: JUN "B" LADIES | M68: 8. | N68: BOROWIECKI Jędrzej | O68: POL | P68: - | Q68: 478 | R68: 349 | S68: - | T68: 590 | U68: - | V68: 1,417 | W68: JUN "D" MEN
M69: 4. | N69: IWACH Katarzyna | O69: POL | Q69: 810 | T69: 810 | V69: =SUM(P69:U69) -> 1,620 | W69: LADIES
A70: JUNIOR C GIRLS
M71: Rank | N71: Name | O71: Member | P71: AUT | Q71: ROU | R71: BUL | S71: SVK | T71: POL | U71: LAT | V71: Total
A72: Rank | B72: Name | C72: Member | D72: AUT | E72: ROU | F72: BUL | G72: SVK | H72: POL | I72: LAT | J72: Total | M72: 8. | N72: ANTAL Tamas | O72: ROU | P72: 387 | Q72: - | R72: - | S72: 387 | T72: - | U72: 531 | V72: 1,305 | W72: JUN "A" MEN
A73: 1. | B73: PFEIFEROVA Tereza | C73: CZE | D73: - | E73: 1,000 | F73: 1,000 | G73: - | H73: 1,000 | I73: - | J73: 3,000 | K73: JUN "C" GIRLS | M73: 1. | N73: SZÁSZ Attila | O73: ROU | P73: - | Q73: 729 | R73: 1,000 | S73: - | T73: 729 | U73: - | V73: 2,458 | W73: JUN "C" MEN
A74: 2. | B74: TKACZUK Wiktoria | C74: POL | D74: - | E74: 810 | F74: 656 | G74: - | H74: 900 | I74: - | J74: 2,366 | K74: JUN "C" GIRLS | M74: 8. | N74: ALBERT Katalin | O74: ROU | P74: - | Q74: 478 | R74: 430 | S74: - | T74: 531 | U74: - | V74: 1,439 | W74: JUN "D" LADIES
A75: 3. | B75: TÚRI Anna | C75: HUN | D75: - | E75: 729 | F75: 810 | G75: - | H75: 656 | I75: - | J75: 2,195 | K75: JUN "C" GIRLS | M75: 1. | N75: SZOCS Renáta | O75: ROU | Q75: 900 | R75: 810 | T75: 1,000 | V75: =SUM(P75:U75) -> 2,710 | W75: LADIES
A76: 4. | B76: ŻAK Wiktoria | C76: POL | D76: - | E76: 656 | F76: 590 | G76: - | H76: 729 | I76: - | J76: 1,975 | K76: JUN "C" GIRLS | M76: 3. | N76: BALÁZS Tünde | O76: ROU | Q76: 1,000 | R76: 900 | V76: =SUM(P76:U76) -> 1,900 | W76: LADIES
A77: 5. | B77: LUZHBINA Anna | C77: RUS | D77: - | E77: 900 | F77: 900 | G77: - | H77: 109 | I77: - | J77: 1,909 | K77: JUN "C" GIRLS | M77: 5. | N77: SILLÓ Otilia | O77: ROU | Q77: 729 | R77: 590 | V77: =SUM(P77:U77) -> 1,319 | W77: LADIES
A78: 6. | B78: ŽELINSKÁ Ema | C78: SVK | D78: - | E78: 387 | F78: 478 | G78: - | H78: 810 | I78: - | J78: 1,675 | K78: JUN "C" GIRLS | M78: 1. | N78: IMRE Emil | O78: ROU | Q78: 1,000 | R78: 1,000 | T78: 1,000 | V78: =SUM(Q78,R78,T78) -> 3,000 | W78: MEN
A79: 7. | B79: TRUSOVÁ Sandra | C79: SVK | D79: - | E79: 531 | F79: 531 | G79: - | H79: 531 | I79: - | J79: 1,593 | K79: JUN "C" GIRLS
A80: 8. | B80: RUSNAKOVA Petra | C80: SVK | D80: - | E80: 590 | F80: 729 | G80: - | H80: 206 | I80: - | J80: 1,525 | K80: JUN "C" GIRLS | M80: Rank | N80: Name | O80: Member | P80: AUT | Q80: ROU | R80: BUL | S80: SVK | T80: POL | U80: LAT | V80: Total
A81: 9. | B81: VARGA Regina Eszter | C81: HUN | D81: - | E81: 478 | F81: 314 | G81: - | H81: 590 | I81: - | J81: 1,382 | K81: JUN "C" GIRLS | M81: 5. | N81: LUZHBINA Anna | O81: RUS | P81: - | Q81: 900 | R81: 900 | S81: - | T81: 109 | U81: - | V81: 1,909 | W81: JUN "C" LADIES
A82: 10. | B82: HYMPÁNOVÁ Alexandra | C82: SVK | D82: - | E82: 430 | F82: 430 | G82: - | H82: 430 | I82: - | J82: 1,290 | K82: JUN "C" GIRLS | M82: 5. | N82: KURCHATOVA Daria | O82: RUS | P82: - | Q82: 810 | R82: 900 | S82: - | T82: 314 | U82: - | V82: 2,024 | W82: JUN "D" LADIES
A83: 11. | B83: TÓTH Zsófi | C83: HUN | D83: - | E83: 229 | F83: 229 | G83: - | H83: 387 | I83: - | J83: 845 | K83: JUN "C" GIRLS | M83: 2. | N83: BALBEKOV Vladimir | O83: RUS | P83: - | Q83: 656 | R83: 900 | S83: - | T83: 900 | U83: - | V83: 2,456 | W83: JUN "D" MEN
A84: 12. | B84: TOPOLSKA Gabriela | C84: POL | D84: - | E84: - | F84: 349 | G84: - | H84: 349 | I84: - | J84: 698 | K84: JUN "C" GIRLS | M84: 7. | N84: PETRUSHENKOV Egor | O84: RUS | P84: - | Q84: 531 | R84: 590 | S84: - | T84: 478 | U84: - | V84: 1,599 | W84: JUN "D" MEN
A85: 13. | B85: GARKOVA Maria | C85: BUL | D85: - | E85: 314 | F85: 254 | G85: - | H85: 80 | I85: - | J85: 648 | K85: JUN "C" GIRLS
A86: 14. | B86: PAVLIKOVÁ Simona | C86: SVK | D86: - | E86: 349 | F86: - | G86: - | H86: 282 | I86: - | J86: 631 | K86: JUN "C" GIRLS | M86: Rank | N86: Name | O86: Member | P86: AUT | Q86: ROU | R86: BUL | S86: SVK | T86: POL | U86: LAT | V86: Total
A87: 15. | B87: NAGY Netti | C87: HUN | D87: - | E87: 254 | F87: - | G87: - | H87: 229 | I87: - | J87: 483 | K87: JUN "C" GIRLS | M87: 1. | N87: PORUBSKA Alica | O87: SVK | P87: 729 | Q87: - | R87: - | S87: 1,000 | T87: - | U87: 1,000 | V87: 2,729 | W87: JUN "A" LADIES
A88: 16. | B88: ANDRIEIEVA Nina | C88: UKR | D88: - | E88: - | F88: - | G88: - | H88: 478 | I88: - | J88: 478 | K88: JUN "C" GIRLS | M88: 6. | N88: ŽELINSKÁ Ema | O88: SVK | P88: - | Q88: 387 | R88: 478 | S88: - | T88: 810 | U88: - | V88: 1,675 | W88: JUN "C" LADIES
A89: 17. | B89: GYUROVA Kalina | C89: BUL | D89: - | E89: 167 | F89: 135 | G89: - | H89: 167 | I89: - | J89: 469 | K89: JUN "C" GIRLS | M89: 7. | N89: TRUSOVÁ Sandra | O89: SVK | P89: - | Q89: 531 | R89: 531 | S89: - | T89: 531 | U89: - | V89: 1,593 | W89: JUN "C" LADIES
A90: 18. | B90: KONDRAK Joanna | C90: POL | D90: - | E90: - | F90: 282 | G90: - | H90: 185 | I90: - | J90: 467 | K90: JUN "C" GIRLS | M90: 8. | N90: RUSNAKOVA Petra | O90: SVK | P90: - | Q90: 590 | R90: 729 | S90: - | T90: 206 | U90: - | V90: 1,525 | W90: JUN "C" LADIES
A91: 19. | B91: KOWALEWSKA Marcelina | C91: POL | D91: - | E91: - | F91: 387 | G91: - | H91: - | I91: - | J91: 387 | K91: JUN "C" GIRLS | M91: 1. | N91: FILIPOVA Lucia | O91: SVK | P91: - | Q91: 1,000 | R91: 1,000 | S91: - | T91: 1,000 | U91: - | V91: 3,000 | W91: JUN "D" LADIES
A92: 20. | B92: UZUN Kübra | C92: TUR | D92: - | E92: 122 | F92: 167 | G92: - | H92: 89 | I92: - | J92: 378 | K92: JUN "C" GIRLS
A93: 21. | B93: IVANDIĆ Maja | C93: CRO | D93: - | E93: - | F93: 206 | G93: - | H93: 135 | I93: - | J93: 341 | K93: JUN "C" GIRLS | M93: Rank | N93: Name | O93: Member | P93: AUT | Q93: ROU | R93: BUL | S93: SVK | T93: POL | U93: LAT | V93: Total
A94: 22. | B94: LISOWSKA Julia | C94: POL | D94: - | E94: - | F94: - | G94: - | H94: 314 | I94: - | J94: 314 | K94: JUN "C" GIRLS | M94: 1. | N94: YARDIMCI Firat | O94: TUR | P94: 900 | Q94: - | R94: - | S94: 810 | T94: - | U94: 900 | V94: 2,610 | W94: JUN "A" MEN
A95: 23. | B95: SELEN Necla Ece | C95: TUR | D95: - | E95: 150 | F95: 122 | G95: - | H95: 31 | I95: - | J95: 303 | K95: JUN "C" GIRLS | M95: 4. | N95: TAHTACI Davut | O95: TUR | P95: 349 | Q95: - | R95: - | S95: 729 | T95: - | U95: 531 | V95: 1,609 | W95: JUN "B" MEN
A96: 24. | B96: KATONA Lilla | C96: HUN | D96: - | E96: 282 | F96: - | G96: - | H96: - | I96: - | J96: 282 | K96: JUN "C" GIRLS | M96: 6. | N96: SIMSEK Tunay | O96: TUR | P96: 387 | Q96: - | R96: - | S96: 135 | T96: - | U96: 1,000 | V96: 1,522 | W96: JUN "B" MEN
A97: 25. | B97: EVGI Elif | C97: TUR | D97: - | E97: 109 | F97: 109 | G97: - | H97: 58 | I97: - | J97: 276 | K97: JUN "C" GIRLS | M97: 6. | N97: KARAGÖL Hazar | O97: TUR | P97: - | Q97: - | R97: 900 | S97: - | T97: 900 | U97: - | V97: 1,800 | W97: JUN "C" MEN
A98: 26. | B98: DOBROVITS Ilona Ilka | C98: HUN | D98: - | E98: 89 | F98: 185 | G98: - | H98: - | I98: - | J98: 274 | K98: JUN "C" GIRLS
A99: 27. | B99: GUTMANE Emilija | C99: LAT | D99: - | E99: 185 | F99: - | G99: - | H99: 72 | I99: - | J99: 257 | K99: JUN "C" GIRLS | M99: Rank | N99: Name | O99: Member | P99: AUT | Q99: ROU | R99: BUL | S99: SVK | T99: POL | U99: LAT | V99: Total
A100: 28. | B100: HENKIEL Patrycja | C100: POL | D100: - | E100: - | F100: - | G100: - | H100: 254 | I100: - | J100: 254 | K100: JUN "C" GIRLS | M100: 3. | N100: HANDEI Volodymyr | O100: UKR | P100: 531 | Q100: - | R100: - | S100: 900 | T100: - | U100: 729 | V100: 2,160 | W100: JUN "A" MEN
A101: 29. | B101: KOVÁCS Vivien | C101: HUN | D101: - | E101: 206 | F101: - | G101: - | H101: - | I101: - | J101: 206 | K101: JUN "C" GIRLS | M101: 7. | N101: HANDEI Oleh | O101: UKR | P101: 229 | Q101: - | R101: - | S101: 810 | T101: - | U101: 430 | V101: 1,469 | W101: JUN "B" MEN
A102: 30. | B102: DOBREŃKO Wiktoria | C102: POL | D102: - | E102: - | F102: - | G102: - | H102: 150 | I102: - | J102: 150 | K102: JUN "C" GIRLS
A103: 30. | B103: JASIC Petra | C103: SRB | D103: - | E103: - | F103: 150 | G103: - | H103: - | I103: - | J103: 150 | K103: JUN "C" GIRLS
A104: 32. | B104: KOŠOVÁ Júlia | C104: SVK | D104: - | E104: 135 | F104: - | G104: - | H104: - | I104: - | J104: 135 | K104: JUN "C" GIRLS
A105: 33. | B105: DRUMSKA Marta | C105: POL | D105: - | E105: - | F105: - | G105: - | H105: 122 | I105: - | J105: 122 | K105: JUN "C" GIRLS
A106: 34. | B106: MAKOVETSKA Anna | C106: UKR | D106: - | E106: - | F106: - | G106: - | H106: 98 | I106: - | J106: 98 | K106: JUN "C" GIRLS
A107: 34. | B107: EVGI Gülçin | C107: TUR | D107: - | E107: 98 | F107: - | G107: - | H107: - | I107: - | J107: 98 | K107: JUN "C" GIRLS
A108: 36. | B108: RUMAK Zuzanna | C108: POL | D108: - | E108: - | F108: - | G108: - | H108: 65 | I108: - | J108: 65 | K108: JUN "C" GIRLS
A109: 37. | B109: PŁOSKA Wiktoria | C109: POL | D109: - | E109: - | F109: - | G109: - | H109: 52 | I109: - | J109: 52 | K109: JUN "C" GIRLS
A110: 38. | B110: ZAJKOWSKA Gabriela | C110: POL | D110: - | E110: - | F110: - | G110: - | H110: 47 | I110: - | J110: 47 | K110: JUN "C" GIRLS
A111: 39. | B111: DAŁEK Anna | C111: POL | D111: - | E111: - | F111: - | G111: - | H111: 42 | I111: - | J111: 42 | K111: JUN "C" GIRLS
A112: 40. | B112: FLORCZAK Vanessa | C112: POL | D112: - | E112: - | F112: - | G112: - | H112: 38 | I112: - | J112: 38 | K112: JUN "C" GIRLS
A113: 41. | B113: CIRTI Sema | C113: TUR | D113: - | E113: - | F113: - | G113: - | H113: 34 | I113: - | J113: 34 | K113: JUN "C" GIRLS
B114: SKATERS IN 2015/2016 | C114: =COUNTIF(J73:J113,">0") -> 41 | E114: =COUNTIF(E73:E113,"x") -> 0 | F114: =COUNTIF(F73:F113,"x") -> 0 | H114: =COUNTIF(H73:H113,"x") -> 0 | K114: JUN "C" GIRLS
B115: ENTRIES IN 2015/2016 | C115: =SUM(E115,F115,H115) -> 80 | E115: =COUNTIF(E73:E113,">1") -> 24 | F115: =COUNTIF(F73:F113,">1") -> 22 | H115: =COUNTIF(H73:H113,">1") -> 34 | K115: JUN "C" GIRLS
A117: JUNIOR D GIRLS
A119: Rank | B119: Name | C119: Member | D119: AUT | E119: ROU | F119: BUL | G119: SVK | H119: POL | I119: LAT | J119: Total
A120: 1. | B120: FILIPOVA Lucia | C120: SVK | D120: - | E120: 1,000 | F120: 1,000 | G120: - | H120: 1,000 | I120: - | J120: 3,000 | K120: JUN "D" GIRLS
A121: 2. | B121: SIMANDLOVÁ Dominika | C121: CZE | D121: - | E121: 729 | F121: 729 | G121: - | H121: 900 | I121: - | J121: 2,358 | K121: JUN "D" GIRLS
A122: 3. | B122: SOMOGYI Barbara | C122: HUN | D122: - | E122: 656 | F122: 810 | G122: - | H122: 810 | I122: - | J122: 2,276 | K122: JUN "D" GIRLS
A123: 4. | B123: DOBRÁN Fanni | C123: HUN | D123: - | E123: 900 | F123: 478 | G123: - | H123: 729 | I123: - | J123: 2,107 | K123: JUN "D" GIRLS
A124: 5. | B124: KURCHATOVA Daria | C124: RUS | D124: - | E124: 810 | F124: 900 | G124: - | H124: 314 | I124: - | J124: 2,024 | K124: JUN "D" GIRLS
A125: 6. | B125: FAJKUSOVÁ Markéta | C125: CZE | D125: - | E125: 430 | F125: 656 | G125: - | H125: 590 | I125: - | J125: 1,676 | K125: JUN "D" GIRLS
A126: 7. | B126: NAGY Anna Kerubina | C126: HUN | D126: - | E126: 590 | F126: 531 | G126: - | H126: 430 | I126: - | J126: 1,551 | K126: JUN "D" GIRLS
A127: 8. | B127: ALBERT Katalin | C127: ROU | D127: - | E127: 478 | F127: 430 | G127: - | H127: 531 | I127: - | J127: 1,439 | K127: JUN "D" GIRLS
A128: 9. | B128: ALBERT Viktória | C128: HUN | D128: - | E128: 314 | F128: 590 | G128: - | H128: 150 | I128: - | J128: 1,054 | K128: JUN "D" GIRLS
A129: 10. | B129: SAPIEŻYŃSKA Wiktoria | C129: POL | D129: - | E129: 349 | F129: 349 | G129: - | H129: 349 | I129: - | J129: 1,047 | K129: JUN "D" GIRLS
A130: 11. | B130: JANSONE Anna | C130: LAT | D130: - | E130: 531 | F130: 282 | G130: - | H130: 206 | I130: - | J130: 1,019 | K130: JUN "D" GIRLS
A131: 12. | B131: KURTA Bíborka | C131: HUN | D131: - | E131: 282 | F131: - | G131: - | H131: 656 | I131: - | J131: 938 | K131: JUN "D" GIRLS
A132: 13. | B132: LEINBERGA Helena Dzeina | C132: LAT | D132: - | E132: 387 | F132: - | G132: - | H132: 282 | I132: - | J132: 669 | K132: JUN "D" GIRLS
A133: 14. | B133: TRUSOVÁ Vanesa | C133: SVK | D133: - | E133: 229 | F133: - | G133: - | H133: 387 | I133: - | J133: 616 | K133: JUN "D" GIRLS
A134: 15. | B134: GOLUBEVA Mariia | C134: RUS | D134: - | E134: 185 | F134: 387 | G134: - | H134: - | I134: - | J134: 572 | K134: JUN "D" GIRLS
A135: 16. | B135: SOKOŁOWSKA Hanna | C135: POL | D135: - | E135: - | F135: - | G135: - | H135: 478 | I135: - | J135: 478 | K135: JUN "D" GIRLS
A136: 17. | B136: HYMPÁNOVÁ Emma | C136: SVK | D136: - | E136: 206 | F136: - | G136: - | H136: 254 | I136: - | J136: 460 | K136: JUN "D" GIRLS
A137: 18. | B137: ZYCH Magdalena | C137: POL | D137: - | E137: - | F137: 254 | G137: - | H137: 167 | I137: - | J137: 421 | K137: JUN "D" GIRLS
A138: 19. | B138: DIMITROVA Anna | C138: BUL | D138: - | E138: 135 | F138: 206 | G138: - | H138: - | I138: - | J138: 341 | K138: JUN "D" GIRLS
A139: 20. | B139: PASHKEVICH Marina | C139: RUS | D139: - | E139: - | F139: 314 | G139: - | H139: - | I139: - | J139: 314 | K139: JUN "D" GIRLS
A140: 21. | B140: OZSVÁTH Lili | C140: HUN | D140: - | E140: 254 | F140: - | G140: - | H140: - | I140: - | J140: 254 | K140: JUN "D" GIRLS
A141: 22. | B141: SELEN MELİKE | C141: TUR | D141: - | E141: 109 | F141: - | G141: - | H141: 135 | I141: - | J141: 244 | K141: JUN "D" GIRLS
A142: 23. | B142: PIÓRECKA Maria | C142: POL | D142: - | E142: - | F142: - | G142: - | H142: 229 | I142: - | J142: 229 | K142: JUN "D" GIRLS
A143: 23. | B143: HARIZANOVA Michaela | C143: BUL | D143: - | E143: - | F143: 229 | G143: - | H143: - | I143: - | J143: 229 | K143: JUN "D" GIRLS
A144: 25. | B144: UZUNER NAZLICAN DENİZ | C144: TUR | D144: - | E144: - | F144: - | G144: - | H144: 185 | I144: - | J144: 185 | K144: JUN "D" GIRLS
A145: 25. | B145: KOVZALOVA Ekaterina | C145: RUS | D145: - | E145: - | F145: 185 | G145: - | H145: - | I145: - | J145: 185 | K145: JUN "D" GIRLS
A146: 27. | B146: VÁKÁR PONGRÁCZ Krisztina | C146: ROU | D146: - | E146: 167 | F146: - | G146: - | H146: - | I146: - | J146: 167 | K146: JUN "D" GIRLS
A147: 28. | B147: DOBRÁN Flóra | C147: HUN | D147: - | E147: 150 | F147: - | G147: - | H147: - | I147: - | J147: 150 | K147: JUN "D" GIRLS
A148: 29. | B148: MATUŁA Jagoda | C148: POL | D148: - | E148: - | F148: - | G148: - | H148: 122 | I148: - | J148: 122 | K148: JUN "D" GIRLS
A149: 29. | B149: CSILLAG Adrien | C149: ROU | D149: - | E149: 122 | F149: - | G149: - | H149: - | I149: - | J149: 122 | K149: JUN "D" GIRLS
A150: 31. | B150: SABOLOVA Tamara | C150: SVK | D150: - | E150: - | F150: - | G150: - | H150: 109 | I150: - | J150: 109 | K150: JUN "D" GIRLS
A151: 32. | B151: BARTA Nóra | C151: ROU | D151: - | E151: 98 | F151: - | G151: - | H151: - | I151: - | J151: 98 | K151: JUN "D" GIRLS
A152: 32. | B152: KAPALSKA Emilia | C152: POL | D152: - | E152: - | F152: - | G152: - | H152: 98 | I152: - | J152: 98 | K152: JUN "D" GIRLS
A153: 34. | B153: GÁLL Sarolta | C153: ROU | D153: - | E153: 89 | F153: - | G153: - | H153: - | I153: - | J153: 89 | K153: JUN "D" GIRLS
A154: 34. | B154: KOCIKOVA Miroslava | C154: SVK | D154: - | E154: - | F154: - | G154: - | H154: 89 | I154: - | J154: 89 | K154: JUN "D" GIRLS
A155: 36. | B155: FUZESY ILKA | C155: ROU | D155: - | E155: 80 | F155: - | G155: - | H155: - | I155: - | J155: 80 | K155: JUN "D" GIRLS
A156: 37. | B156: HARABAGIU MARA | C156: ROU | D156: - | E156: 72 | F156: - | G156: - | H156: - | I156: - | J156: 72 | K156: JUN "D" GIRLS
A157: 38. | B157: MILAKNYTE Indre | C157: LTU | D157: - | E157: 65 | F157: - | G157: - | H157: - | I157: - | J157: 65 | K157: JUN "D" GIRLS
B158: SKATERS IN 2015/2016 | C158: =COUNTIF(J120:J157,">0") -> 38 | E158: =COUNTIF(E120:E157,"x") -> 0 | F158: =COUNTIF(F120:F157,"x") -> 0 | H158: =COUNTIF(H120:H157,"x") -> 0 | K158: JUN "D" GIRLS
B159: ENTRIES IN 2015/2016 | C159: =SUM(E159,F159,H159) -> 68 | E159: =COUNTIF(E117:E157,">1") -> 27 | F159: =COUNTIF(F117:F157,">1") -> 17 | H159: =COUNTIF(H117:H157,">1") -> 24 | K159: JUN "D" GIRLS
A161: 2015/2016
A162: QUAL FOR JUNIOR EUROPE CUP (3 BEST COMPETITIONS)
B164: JUNIOR "A" MEN
A166: Rank | B166: Name | C166: Member | D166: AUT | E166: ROU | F166: BUL | G166: SVK | H166: POL | I166: LAT | J166: Total
A167: 1. | B167: YARDIMCI Firat | C167: TUR | D167: 900 | E167: - | F167: - | G167: 810 | H167: - | I167: 900 | J167: 2,610 | K167: JUN "A" MEN
A168: 2. | B168: GEORGIEV Dimitar | C168: BUL | D168: 656 | E168: - | F168: - | G168: 1,000 | H168: - | I168: 656 | J168: 2,312 | K168: JUN "A" MEN
A169: 3. | B169: HANDEI Volodymyr | C169: UKR | D169: 531 | E169: - | F169: - | G169: 900 | H169: - | I169: 729 | J169: 2,160 | K169: JUN "A" MEN
A170: 4. | B170: ZVEJNIEKS Roberts-Janis | C170: LAT | D170: 1,000 | E170: - | F170: - | G170: - | H170: - | I170: 1,000 | J170: 2,000 | K170: JUN "A" MEN
A171: 5. | B171: NASRI Klaudio | C171: BUL | D171: 135 | E171: - | F171: - | G171: 729 | H171: - | I171: 810 | J171: 1,674 | K171: JUN "A" MEN
A172: 6. | B172: BAKEVICS Tomass | C172: LAT | D172: 810 | E172: - | F172: - | G172: 430 | H172: - | I172: 430 | J172: 1,670 | K172: JUN "A" MEN
A173: 7. | B173: NIEŚCIER Karol | C173: POL | D173: 590 | E173: - | F173: - | G173: 478 | H173: - | I173: 314 | J173: 1,382 | K173: JUN "A" MEN
A174: 8. | B174: ANTAL Tamas | C174: ROU | D174: 387 | E174: - | F174: - | G174: 387 | H174: - | I174: 531 | J174: 1,305 | K174: JUN "A" MEN
A175: 9. | B175: LAHIMAKHAU Ivan | C175: BLR | D175: 254 | E175: - | F175: - | G175: 656 | H175: - | I175: 387 | J175: 1,297 | K175: JUN "A" MEN
A176: 10. | B176: BIELECKI Bartosz | C176: POL | D176: 349 | E176: - | F176: - | G176: 314 | H176: - | I176: 590 | J176: 1,253 | K176: JUN "A" MEN
A177: 11. | B177: KOLENC Martin | C177: CRO | D177: - | E177: - | F177: - | G177: 590 | H177: - | I177: 478 | J177: 1,068 | K177: JUN "A" MEN
A178: 12. | B178: MOROZ Jakub | C178: POL | D178: 314 | E178: - | F178: - | G178: 349 | H178: - | I178: 282 | J178: 945 | K178: JUN "A" MEN
A179: 13. | B179: VIGANTS Endijs | C179: LAT | D179: 282 | E179: - | F179: - | G179: 229 | H179: - | I179: 349 | J179: 860 | K179: JUN "A" MEN
A180: 14. | B180: REBIK Yevgeniy | C180: KAZ | D180: 729 | E180: - | F180: - | G180: - | H180: - | I180: - | J180: 729 | K180: JUN "A" MEN
A181: 15. | B181: POPOV Michael | C181: POL | D181: 185 | E181: - | F181: - | G181: 531 | H181: - | I181: - | J181: 716 | K181: JUN "A" MEN
A182: 16. | B182: PILNYK Vasyl | C182: UKR | D182: 206 | E182: - | F182: - | G182: 282 | H182: - | I182: - | J182: 488 | K182: JUN "A" MEN
A183: 17. | B183: WOLFGANG Mathias | C183: AUT | D183: 229 | E183: - | F183: - | G183: 254 | H183: - | I183: - | J183: 483 | K183: JUN "A" MEN
A184: 18. | B184: KORECKI Krystian | C184: POL | D184: 478 | E184: - | F184: - | G184: - | H184: - | I184: - | J184: 478 | K184: JUN "A" MEN
A185: 19. | B185: SYMONENKO Bogdan | C185: UKR | D185: 430 | E185: - | F185: - | G185: - | H185: - | I185: - | J185: 430 | K185: JUN "A" MEN
A186: 20. | B186: SALCEANU Eduard | C186: ROU | D186: 150 | E186: - | F186: - | G186: 185 | H186: - | I186: - | J186: 335 | K186: JUN "A" MEN
A187: 21. | B187: HYDZIK Sebastian | C187: POL | D187: - | E187: - | F187: - | G187: 206 | H187: - | I187: - | J187: 206 | K187: JUN "A" MEN
A188: 22. | B188: MOJSILOVIC Ivan | C188: SRB | D188: 167 | E188: - | F188: - | G188: - | H188: - | I188: - | J188: 167 | K188: JUN "A" MEN
B189: SKATERS IN 2015/2016 | C189: =COUNTIF(J155:J188,">0") -> 25 | D189: =COUNTIF(D167:D188,"x") -> 0 | G189: =COUNTIF(G167:G188,"x") -> 0 | I189: =COUNTIF(I167:I188,"x") -> 0 | K189: JUN "A" MEN
B190: ENTRIES IN 2015/2016 | C190: =SUM(D190,G190,I190) -> 50 | D190: =COUNTIF(D167:D188,">1") -> 20 | G190: =COUNTIF(G167:G188,">1") -> 17 | I190: =COUNTIF(I167:I188,">1") -> 13 | K190: JUN "A" MEN
B192: JUNIOR "B" MEN
A194: Rank | B194: Name | C194: Member | D194: AUT | E194: ROU | F194: BUL | G194: SVK | H194: POL | I194: LAT | J194: Total
A195: 1. | B195: KUCZYŃSKI Łukasz | C195: POL | D195: 729 | E195: - | F195: - | G195: 900 | H195: - | I195: 810 | J195: 2,439 | K195: JUN "B" MEN
A196: 2. | B196: KRŪZBERGS Karlis | C196: LAT | D196: 656 | E196: - | F196: - | G196: 478 | H196: - | I196: 900 | J196: 2,034 | K196: JUN "B" MEN
A197: 3. | B197: ANIKIEJ Rafał | C197: POL | D197: 1,000 | E197: - | F197: - | G197: 1,000 | H197: - | I197: - | J197: 2,000 | K197: JUN "B" MEN
A198: 4. | B198: TAHTACI Davut | C198: TUR | D198: 349 | E198: - | F198: - | G198: 729 | H198: - | I198: 531 | J198: 1,609 | K198: JUN "B" MEN
A199: 5. | B199: MALISZEWSKI Jakub | C199: POL | D199: 430 | E199: - | F199: - | G199: 531 | H199: - | I199: 590 | J199: 1,551 | K199: JUN "B" MEN
A200: 6. | B200: SIMSEK Tunay | C200: TUR | D200: 387 | E200: - | F200: - | G200: 135 | H200: - | I200: 1,000 | J200: 1,522 | K200: JUN "B" MEN
A201: 7. | B201: HANDEI Oleh | C201: UKR | D201: 229 | E201: - | F201: - | G201: 810 | H201: - | I201: 430 | J201: 1,469 | K201: JUN "B" MEN
A202: 8. | B202: NEMES Krisztián | C202: HUN | D202: 28 | E202: - | F202: - | G202: 656 | H202: - | I202: 729 | J202: 1,413 | K202: JUN "B" MEN
A203: 9. | B203: ADAMSKI Paweł | C203: POL | D203: 254 | E203: - | F203: - | G203: 590 | H203: - | I203: 254 | J203: 1,098 | K203: JUN "B" MEN
A204: 10. | B204: TIMÁR Ádám | C204: ROU | D204: 65 | E204: - | F204: - | G204: 349 | H204: - | I204: 656 | J204: 1,070 | K204: JUN "B" MEN
A205: 11. | B205: SHAMUKHANOV Yerkebulan | C205: KAZ | D205: 900 | E205: - | F205: - | G205: - | H205: - | I205: - | J205: 900 | K205: JUN "B" MEN
A206: 12. | B206: RINGER Oliver | C206: SVK | D206: 167 | E206: - | F206: - | G206: 430 | H206: - | I206: 282 | J206: 879 | K206: JUN "B" MEN
A207: 13. | B207: BEISEYEV Nurlybek | C207: KAZ | D207: 810 | E207: - | F207: - | G207: - | H207: - | I207: - | J207: 810 | K207: JUN "B" MEN
... 130 more rows

Sheet STARCLASS SERIES 2015-16
A1: Qualifiers for the Europa Cup Final from the StarClass region | G1: Qualifiers for the Europa Cup Final from the StarClass region
A3: Ladies Junior D | G3: Men Junior D
A4: Rank | B4: Name | C4: Club | D4: Nation | G4: Rank | H4: Name | I4: Club | J4: Nation | U4: =SUM(U5:U14) -> 79 | W4: =SUM(W5:W13) -> 77
A5: 1 | B5: FILIPPI, Katia | C5: CPP | D5: ITA | E5: JUN "D" LADIES | G5: 1 | H5: VOLET, Gabriel | I5: OGCA | J5: FRA | K5: JUN "D" MEN | N5: 1 | O5: ALMEY, Jens | P5: STKG | Q5: BEL | R5: JUN "A" MEN | T5: LADIES | U5: =COUNTIF($R$5:$R$91,T5) -> 7 | V5: BEL | W5: =COUNTIF($Q$5:$Q$91,V5) -> 7
A6: 2 | B6: SPECHENHAUSER, Anna | C6: BOR | D6: ITA | E6: JUN "D" LADIES | G6: 2 | H6: ROMEO, Giuseppe | I6: VGT | J6: ITA | K6: JUN "D" MEN | N6: 3 | O6: DESMET, Stijn | P6: IRTA | Q6: BEL | R6: JUN "A" MEN | T6: MEN | U6: 8 | V6: ESP | W6: =COUNTIF($Q$5:$Q$91,V6) -> 1
A7: 3 | B7: BRADANINI, Ilenia | C7: BOR | D7: ITA | E7: JUN "D" LADIES | G7: 3 | H7: SCHEPERS, Leander | I7: YDS | J7: BEL | K7: JUN "D" MEN | N7: 4 | O7: PÉTRÉ, Ward | P7: YDS | Q7: BEL | R7: JUN "A" MEN | S7: =87-COUNTBLANK(R5:R91) -> 79 | T7: JUN "A" LADIES | U7: 8 | V7: FRA | W7: 9
A8: 4 | B8: HAUGUEL, Léa | C8: CVGH | D8: FRA | E8: JUN "D" LADIES | G8: 4 | H8: TUNNO, Maurizio | I8: VGT | J8: ITA | K8: JUN "D" MEN | N8: 1 | O8: VAN KERCKVOORDE, Evelien | P8: STKG | Q8: BEL | R8: JUN "C" LADIES | T8: JUN "A" MEN | U8: 8 | V8: GBR | W8: 8
A9: 5 | B9: BABER, Anna | C9: EVD | D9: GER | E9: JUN "D" LADIES | G9: 5 | H9: DALRYMPLE, Ted | I9: HVHW | J9: NED | K9: JUN "D" MEN | N9: 3 | O9: SCHEPERS, Leander | P9: YDS | Q9: BEL | R9: JUN "D" MEN | T9: JUN "B" LADIES | U9: 8 | V9: GER | W9: 8
A10: 6 | B10: VELZEBOER, Michelle | C10: STB | D10: NED | E10: JUN "D" LADIES | G10: 6 | H10: OSS CHEMPER, Davide | I10: CPP | J10: ITA | K10: JUN "D" MEN | N10: 5 | O10: DANNEEL, Alexandra | P10: BSC | Q10: BEL | R10: LADIES | T10: JUN "B" MEN | U10: 8 | V10: ITA | W10: 18
A11: 7 | B11: ROES, Esmee | C11: TRL | D11: NED | E11: JUN "D" LADIES | G11: 7 | H11: COLLINS, Theo | I11: ALD | J11: GBR | K11: JUN "D" MEN | N11: 8 | O11: GOEMINNE, Gert-Jan | P11: IRTA | Q11: BEL | R11: MEN | T11: JUN "C" LADIES | U11: 8 | V11: LUX | W11: 2
A12: 8 | B12: NOORDERGRAAF, Nikki | C12: IJVZ | D12: NED | E12: JUN "D" LADIES | G12: 8 | H12: LLOP-IZQUIERDO, Nil | I12: BST | J12: ESP | K12: JUN "D" MEN | T12: JUN "C" MEN | U12: 8 | V12: NED | W12: 23
N13: 8 | O13: LLOP-IZQUIERDO, Nil | P13: BST | Q13: ESP | R13: JUN "D" MEN | T13: JUN "D" LADIES | U13: 8 | V13: SWE | W13: 1
A14: Ladies Junior C | G14: Men Junior C | T14: JUN "D" MEN | U14: 8
A15: Rank | B15: Name | C15: Club | D15: Nation | G15: Rank | H15: Name | I15: Club | J15: Nation | N15: 7 | O15: FLORAC, Clément | P15: USF | Q15: FRA | R15: JUN "A" MEN
A16: 1 | B16: VAN KERCKVOORDE, Evelien | C16: STKG | D16: BEL | E16: JUN "C" LADIES | G16: 1 | H16: SPECHENHAUSER, Luca | I16: BOR | J16: ITA | K16: JUN "C" MEN | N16: 7 | O16: DAUDET, Gwendoline | P16: USF | Q16: FRA | R16: JUN "B" LADIES
A17: 2 | B17: CONFORTOLA, Elisa | C17: BOR | D17: ITA | E17: JUN "C" LADIES | G17: 2 | H17: KINGMA, Niels | I17: TRL | J17: NED | K17: JUN "C" MEN | N17: 4 | O17: VACHERON, Cyprien | P17: USF | Q17: FRA | R17: JUN "B" MEN
A18: 3 | B18: MAFFEI, Federica | C18: SCP | D18: ITA | E18: JUN "C" LADIES | G18: 3 | H18: GÉRÉ, Augustin | I18: LUX | J18: LUX | K18: JUN "C" MEN | N18: 5 | O18: SELLIER, Diané | P18: USF | Q18: FRA | R18: JUN "C" MEN
A19: 4 | B19: BEISER, Anna | C19: ECO | D19: GER | E19: JUN "C" LADIES | G19: 4 | H19: BOSMA, Hugo | I19: STB | J19: NED | K19: JUN "C" MEN | N19: 4 | O19: HAUGUEL, Léa | P19: CVGH | Q19: FRA | R19: JUN "D" LADIES
A20: 5 | B20: BRESCIANI, Giorgia | C20: BOR | D20: ITA | E20: JUN "C" LADIES | G20: 5 | H20: SELLIER, Diané | I20: USF | J20: FRA | K20: JUN "C" MEN | N20: 1 | O20: VOLET, Gabriel | P20: OGCA | Q20: FRA | R20: JUN "D" MEN
A21: 6 | B21: WIERSMA, Marijn | C21: STA | D21: NED | E21: JUN "C" LADIES | G21: 6 | H21: TENZER, Robin | I21: ECO | J21: GER | K21: JUN "C" MEN | N21: 4 | O21: DAFFINI, Maryne | P21: RPV | Q21: FRA | R21: LADIES
A22: 7 | B22: DALRYMPLE, Georgie | C22: HVHW | D22: NED | E22: JUN "C" LADIES | G22: 7 | H22: PREMPEH, Solomon | I22: ALD | J22: GBR | K22: JUN "C" MEN | N22: 6 | O22: MELINE, Thibaut | P22: ASMB | Q22: FRA | R22: MEN
A23: 8 | B23: MURPHY, Caroline | C23: LUX | D23: LUX | E23: JUN "C" LADIES | G23: 8 | H23: VLOEMANS, Kjeld | I23: IJVZ | J23: NED | K23: JUN "C" MEN | N23: 7 | O23: MELINE, Thomas | P23: ASMB | Q23: FRA | R23: MEN
A25: Ladies Junior B | G25: Men Junior B | N25: 3 | O25: PICKERING, Jennifer | P25: NIRC | Q25: GBR | R25: JUN "A" LADIES
A26: Rank | B26: Name | C26: Club | D26: Nation | G26: Rank | H26: Name | I26: Club | J26: Nation | N26: 5 | O26: MOODY, Jonathan | P26: ALD | Q26: GBR | R26: JUN "B" MEN
A27: 1 | B27: GÄRTNER, Anna Katharina | C27: EVD | D27: GER | E27: JUN "B" LADIES | G27: 1 | H27: DE BOER, Tjerk | I27: TRL | J27: NED | K27: JUN "B" MEN | N27: 7 | O27: PREMPEH, Solomon | P27: ALD | Q27: GBR | R27: JUN "C" MEN
A28: 2 | B28: LANCEE, Gioya | C28: SCT | D28: NED | E28: JUN "B" LADIES | G28: 2 | H28: BRUNSMANN, Jasper | I28: TRL | J28: NED | K28: JUN "B" MEN | N28: 7 | O28: COLLINS, Theo | P28: ALD | Q28: GBR | R28: JUN "D" MEN
A29: 3 | B29: JACOBS, Gina | C29: EVD | D29: GER | E29: JUN "B" LADIES | G29: 3 | H29: CHONG, Mark | I29: BOR | J29: ITA | K29: JUN "B" MEN | N29: 1 | O29: THOMSON, Kathryn | P29: AYR | Q29: GBR | R29: LADIES
A30: 4 | B30: IORIATTI, Gloria | C30: CPP | D30: ITA | E30: JUN "B" LADIES | G30: 4 | H30: VACHERON, Cyprien | I30: USF | J30: FRA | K30: JUN "B" MEN | N30: 3 | O30: COOPER, Gemma | P30: NIRC | Q30: GBR | R30: LADIES
A31: 5 | B31: CONFORTOLA, Gloria | C31: BOR | D31: ITA | E31: JUN "B" LADIES | G31: 5 | H31: MOODY, Jonathan | I31: ALD | J31: GBR | K31: JUN "B" MEN | N31: 4 | O31: SIMMS, Billy | P31: MIRC | Q31: GBR | R31: MEN
A32: 6 | B32: TUNNO, Melissa | C32: VGT | D32: ITA | E32: JUN "B" LADIES | G32: 6 | H32: MARINELLI, Pietro | I32: BOR | J32: ITA | K32: JUN "B" MEN | N32: 5 | O32: CHEETHAM, Josh | P32: NIRC | Q32: GBR | R32: MEN
A33: 7 | B33: DAUDET, Gwendoline | C33: USF | D33: FRA | E33: JUN "B" LADIES | G33: 7 | H33: JANSEN, Nathan | I33: TRL | J33: NED | K33: JUN "B" MEN
A34: 8 | B34: JORRITSMA, Rosalie | C34: SCT | D34: NED | E34: JUN "B" LADIES | G34: 8 | H34: LÖFFLER, Luca | I34: ECO | J34: GER | K34: JUN "B" MEN | N34: 7 | O34: TAUBERT, Lotte | P34: ECO | Q34: GER | R34: JUN "A" LADIES
N35: 8 | O35: RIETZKE, Tina | P35: EVD | Q35: GER | R35: JUN "A" LADIES
A36: Ladies Junior A | G36: Men Junior A | N36: 1 | O36: GÄRTNER, Anna Katharina | P36: EVD | Q36: GER | R36: JUN "B" LADIES
A37: Rank | B37: Name | C37: Club | D37: Nation | E37: JUN "A" LADIES | G37: Rank | H37: Name | I37: Club | J37: Nation | N37: 3 | O37: JACOBS, Gina | P37: EVD | Q37: GER | R37: JUN "B" LADIES
A38: 1 | B38: DEN DULK, Tineke | C38: TRL | D38: NED | E38: JUN "A" LADIES | G38: 1 | H38: ALMEY, Jens | I38: STKG | J38: BEL | K38: JUN "A" MEN | N38: 8 | O38: LÖFFLER, Luca | P38: ECO | Q38: GER | R38: JUN "B" MEN
A39: 2 | B39: SIGHEL, Arianna | C39: SCP | D39: ITA | E39: JUN "A" LADIES | G39: 2 | H39: GIORDANO, Marco | I39: BOR | J39: ITA | K39: JUN "A" MEN | N39: 4 | O39: BEISER, Anna | P39: ECO | Q39: GER | R39: JUN "C" LADIES
A40: 3 | B40: PICKERING, Jennifer | C40: NIRC | D40: GBR | E40: JUN "A" LADIES | G40: 3 | H40: DESMET, Stijn | I40: IRTA | J40: BEL | K40: JUN "A" MEN | N40: 6 | O40: TENZER, Robin | P40: ECO | Q40: GER | R40: JUN "C" MEN
A41: 4 | B41: BOTTER GOMEZ, Nicole | C41: AEV | D41: ITA | E41: JUN "A" LADIES | G41: 4 | H41: PÉTRÉ, Ward | I41: YDS | J41: BEL | K41: JUN "A" MEN | N41: 5 | O41: BABER, Anna | P41: EVD | Q41: GER | R41: JUN "D" LADIES
A42: 5 | B42: VAN ZUIJLEN, Emma | C42: IHCL | D42: NED | E42: JUN "A" LADIES | G42: 5 | H42: SLOOTWEG, Koen | I42: IHCL | J42: NED | K42: JUN "A" MEN
A43: 6 | B43: AARDOOM, Avalon | C43: HVHW | D43: NED | E43: JUN "A" LADIES | G43: 6 | H43: DUFBERG SUH, Fabrice | I43: SKS | J43: SWE | K43: JUN "A" MEN | N43: 2 | O43: SIGHEL, Arianna | P43: SCP | Q43: ITA | R43: JUN "A" LADIES
A44: 7 | B44: TAUBERT, Lotte | C44: ECO | D44: GER | E44: JUN "A" LADIES | G44: 7 | H44: FLORAC, Clément | I44: USF | J44: FRA | K44: JUN "A" MEN | N44: 4 | O44: BOTTER GOMEZ, Nicole | P44: AEV | Q44: ITA | R44: JUN "A" LADIES
A45: 8 | B45: RIETZKE, Tina | C45: EVD | D45: GER | E45: JUN "A" LADIES | G45: 8 | H45: JANSSON, Jacob | I45: SKS | J45: SWE | K45: JUN "A" MEN | N45: 2 | O45: GIORDANO, Marco | P45: BOR | Q45: ITA | R45: JUN "A" MEN
N46: 4 | O46: IORIATTI, Gloria | P46: CPP | Q46: ITA | R46: JUN "B" LADIES
A47: Ladies Senior | G47: Men Senior | N47: 5 | O47: CONFORTOLA, Gloria | P47: BOR | Q47: ITA | R47: JUN "B" LADIES
A48: Rank | B48: Name | C48: Club | D48: Nation | G48: Rank | H48: Name | I48: Club | J48: Nation | N48: 6 | O48: TUNNO, Melissa | P48: VGT | Q48: ITA | R48: JUN "B" LADIES
A49: 1 | B49: THOMSON, Kathryn | C49: AYR | D49: GBR | E49: LADIES | G49: 1 | H49: BLOEMHOF, Leon | I49: TRL | J49: NED | K49: MEN | N49: 3 | O49: CHONG, Mark | P49: BOR | Q49: ITA | R49: JUN "B" MEN
A50: 2 | B50: KOOYSTRA, Roza | C50: SCT | D50: NED | E50: LADIES | G50: 2 | H50: ELZINK, Mylan | I50: GO | J50: NED | K50: MEN | N50: 6 | O50: MARINELLI, Pietro | P50: BOR | Q50: ITA | R50: JUN "B" MEN
A51: 3 | B51: COOPER, Gemma | C51: NIRC | D51: GBR | E51: LADIES | G51: 3 | H51: HOOGERWERF, Dylan | I51: HVHW | J51: NED | K51: MEN | N51: 2 | O51: CONFORTOLA, Elisa | P51: BOR | Q51: ITA | R51: JUN "C" LADIES
A52: 4 | B52: DAFFINI, Maryne | C52: RPV | D52: FRA | E52: LADIES | G52: 4 | H52: SIMMS, Billy | I52: MIRC | J52: GBR | K52: MEN | N52: 3 | O52: MAFFEI, Federica | P52: SCP | Q52: ITA | R52: JUN "C" LADIES
A53: 5 | B53: DANNEEL, Alexandra | C53: BSC | D53: BEL | E53: LADIES | G53: 5 | H53: CHEETHAM, Josh | I53: NIRC | J53: GBR | K53: MEN | N53: 5 | O53: BRESCIANI, Giorgia | P53: BOR | Q53: ITA | R53: JUN "C" LADIES
A54: 6 | B54: LANDMAN, Anke Jannie | C54: STG | D54: NED | E54: LADIES | G54: 6 | H54: MELINE, Thibaut | I54: ASMB | J54: FRA | K54: MEN | N54: 1 | O54: SPECHENHAUSER, Luca | P54: BOR | Q54: ITA | R54: JUN "C" MEN
A55: 7 | B55: LARSEN, Nathalie | C55: SKS | D55: SWE | E55: LADIES | G55: 7 | H55: MELINE, Thomas | I55: ASMB | J55: FRA | K55: MEN | N55: 1 | O55: FILIPPI, Katia | P55: CPP | Q55: ITA | R55: JUN "D" LADIES
G56: 8 | H56: GOEMINNE, Gert-Jan | I56: IRTA | J56: BEL | K56: MEN | N56: 2 | O56: SPECHENHAUSER, Anna | P56: BOR | Q56: ITA | R56: JUN "D" LADIES
N57: 3 | O57: BRADANINI, Ilenia | P57: BOR | Q57: ITA | R57: JUN "D" LADIES
N58: 2 | O58: ROMEO, Giuseppe | P58: VGT | Q58: ITA | R58: JUN "D" MEN
N59: 4 | O59: TUNNO, Maurizio | P59: VGT | Q59: ITA | R59: JUN "D" MEN
N60: 6 | O60: OSS CHEMPER, Davide | P60: CPP | Q60: ITA | R60: JUN "D" MEN
N62: 8 | O62: MURPHY, Caroline | P62: LUX | Q62: LUX | R62: JUN "C" LADIES
N63: 3 | O63: GÉRÉ, Augustin | P63: LUX | Q63: LUX | R63: JUN "C" MEN
N65: 1 | O65: DEN DULK, Tineke | P65: TRL | Q65: NED | R65: JUN "A" LADIES
N66: 5 | O66: VAN ZUIJLEN, Emma | P66: IHCL | Q66: NED | R66: JUN "A" LADIES
N67: 6 | O67: AARDOOM, Avalon | P67: HVHW | Q67: NED | R67: JUN "A" LADIES
N68: 5 | O68: SLOOTWEG, Koen | P68: IHCL | Q68: NED | R68: JUN "A" MEN
N69: 2 | O69: LANCEE, Gioya | P69: SCT | Q69: NED | R69: JUN "B" LADIES
N70: 8 | O70: JORRITSMA, Rosalie | P70: SCT | Q70: NED | R70: JUN "B" LADIES
N71: 1 | O71: DE BOER, Tjerk | P71: TRL | Q71: NED | R71: JUN "B" MEN
N72: 2 | O72: BRUNSMANN, Jasper | P72: TRL | Q72: NED | R72: JUN "B" MEN
N73: 7 | O73: JANSEN, Nathan | P73: TRL | Q73: NED | R73: JUN "B" MEN
N74: 6 | O74: WIERSMA, Marijn | P74: STA | Q74: NED | R74: JUN "C" LADIES
N75: 7 | O75: DALRYMPLE, Georgie | P75: HVHW | Q75: NED | R75: JUN "C" LADIES
N76: 2 | O76: KINGMA, Niels | P76: TRL | Q76: NED | R76: JUN "C" MEN
N77: 4 | O77: BOSMA, Hugo | P77: STB | Q77: NED | R77: JUN "C" MEN
N78: 8 | O78: VLOEMANS, Kjeld | P78: IJVZ | Q78: NED | R78: JUN "C" MEN
N79: 6 | O79: VELZEBOER, Michelle | P79: STB | Q79: NED | R79: JUN "D" LADIES
N80: 7 | O80: ROES, Esmee | P80: TRL | Q80: NED | R80: JUN "D" LADIES
N81: 8 | O81: NOORDERGRAAF, Nikki | P81: IJVZ | Q81: NED | R81: JUN "D" LADIES
N82: 5 | O82: DALRYMPLE, Ted | P82: HVHW | Q82: NED | R82: JUN "D" MEN
N83: 2 | O83: KOOYSTRA, Roza | P83: SCT | Q83: NED | R83: LADIES
N84: 6 | O84: LANDMAN, Anke Jannie | P84: STG | Q84: NED | R84: LADIES
N85: 1 | O85: BLOEMHOF, Leon | P85: TRL | Q85: NED | R85: MEN
N86: 2 | O86: ELZINK, Mylan | P86: GO | Q86: NED | R86: MEN
N87: 3 | O87: HOOGERWERF, Dylan | P87: HVHW | Q87: NED | R87: MEN
N89: 6 | O89: DUFBERG SUH, Fabrice | P89: SKS | Q89: SWE | R89: JUN "A" MEN
N90: 8 | O90: JANSSON, Jacob | P90: SKS | Q90: SWE | R90: JUN "A" MEN
N91: 7 | O91: LARSEN, Nathalie | P91: SKS | Q91: SWE | R91: LADIES
